Body Name,Body,Service Division Label,Service Division Code,Organisational Unit,Expenditure Category,Expenditure Code,CIPFA detailed expediture type,CIPFA detailed expediture code,Narrative,Date,Transaction number,Net Amount,Capital and Revenue,Supplier Name,Supplier ID,,
Chorley Borough Council,http://statistics.data.gov.uk/id/local-authority/30UE,Service Management & Support,1009,CUST - Customer & Digital,Vehicles and Plant Maintenance,30045,Direct Transport Costs,5016,"Quantity x 3 c12-17038021-  Balljoint 25/35�, M18 X 1,5 RH Quantity x 3 0230873-2-  Hexagon nut M18x1,5x9 04 steel zn ",11/11/2022,0173752,260.65,Revenue,Aebi Schmidt UK Ltd,17287,,
Chorley Borough Council,http://statistics.data.gov.uk/id/local-authority/30UE,Culture & Heritage,1036,GOVN - Policy & Governance,Exhibitions & Special Events,40158,Miscellaneous Expenses,5034,PA Hire - Astley Illuminated 22-10-22,18/11/2022,0173862,250.00,Revenue,Alistair Milner T/A P A Hire Northwest,86981,,
Chorley Borough Council,http://statistics.data.gov.uk/id/local-authority/30UE,Central Support Services,1009,CUST - Customer & Digital,Bank Charges,40151,Miscellaneous Expenses,5034,add ac fee,11/11/2022,0173674,10.00,Revenue,Allpay Net Ltd,17242,,
Chorley Borough Council,http://statistics.data.gov.uk/id/local-authority/30UE,Central Support Services,1009,CUST - Customer & Digital,Bank Charges,40151,Miscellaneous Expenses,5034,post off,11/11/2022,0173674,564.42,Revenue,Allpay Net Ltd,17242,,
Chorley Borough Council,http://statistics.data.gov.uk/id/local-authority/30UE,Central Support Services,1009,CUST - Customer & Digital,Bank Charges,40151,Miscellaneous Expenses,5034,paypoint,11/11/2022,0173674,172.39,Revenue,Allpay Net Ltd,17242,,
Chorley Borough Council,http://statistics.data.gov.uk/id/local-authority/30UE,Central Support Services,1009,CUST - Customer & Digital,Bank Charges,40151,Miscellaneous Expenses,5034,webconn,11/11/2022,0173674,46.00,Revenue,Allpay Net Ltd,17242,,
Chorley Borough Council,http://statistics.data.gov.uk/id/local-authority/30UE,Central Support Services,1009,EARL - Communities,External Contractor,40198,Miscellaneous Expenses,5034,Rats and Mice Pest Control for Chorley Council,04/11/2022,0169765,"1,068.46",Revenue,ALPHA PEST CONTROL LIMITED,18208,,
Chorley Borough Council,http://statistics.data.gov.uk/id/local-authority/30UE,Central Support Services,1009,EARL - Communities,External Contractor,40198,Miscellaneous Expenses,5034,Domestic pest control service delivery,25/11/2022,0173094,"1,363.80",Revenue,ALPHA PEST CONTROL LIMITED,18208,,
Chorley Borough Council,http://statistics.data.gov.uk/id/local-authority/30UE,Central Support Services,1009,EARL - Communities,External Contractor,40198,Miscellaneous Expenses,5034,Domestic pest control service delivery,11/11/2022,0173355,"2,435.09",Revenue,ALPHA PEST CONTROL LIMITED,18208,,
Chorley Borough Council,http://statistics.data.gov.uk/id/local-authority/30UE,Central Support Services,1009,EARL - Communities,External Contractor,40198,Miscellaneous Expenses,5034,Domestic pest control service delivery,11/11/2022,0173356,"1,724.44",Revenue,ALPHA PEST CONTROL LIMITED,18208,,
Chorley Borough Council,http://statistics.data.gov.uk/id/local-authority/30UE,Central Support Services,1009,GROW - Commercial & Property,General Repairs - Reactive,20004,Repairs Maintenance & Alts,5005,Primrose Gardens smoke vent near ADDRESS REDACTED replacement,11/11/2022,0172984,"1,444.13",Revenue,Amalgamated Ltd,78289,,
Chorley Borough Council,http://statistics.data.gov.uk/id/local-authority/30UE,Central Support Services,1009,GROW - Commercial & Property,General Repairs - Reactive,20004,Repairs Maintenance & Alts,5005,"Primrose Gardens Installation of beacons and vibrating pillow to ADDRESS REDACTED part 6 detectors, Also a beacon to be installed",11/11/2022,0172985,"2,732.30",Revenue,Amalgamated Ltd,78289,,
Chorley Borough Council,http://statistics.data.gov.uk/id/local-authority/30UE,Central Support Services,1009,GROW - Commercial & Property,General Repairs - Reactive,20004,Repairs Maintenance & Alts,5005,Town Hall   - Security Systems Reactive Repairs,11/11/2022,0173724,326.25,Revenue,Amalgamated Ltd,78289,,
Chorley Borough Council,http://statistics.data.gov.uk/id/local-authority/30UE,Central Support Services,1009,GROW - Commercial & Property,General Repairs - Reactive,20004,Repairs Maintenance & Alts,5005,Astley Hall and Buildings   - Security Systems Reactive Repairs,11/11/2022,0173724,38.75,Revenue,Amalgamated Ltd,78289,,
Chorley Borough Council,http://statistics.data.gov.uk/id/local-authority/30UE,Central Support Services,1009,CUST - Customer & Digital,Computer Software-Additional,40102,Communication and Computing,5028,Amazon AWS web services - 718576685325 Cloud charges October 2022,18/11/2022,0172860,"5,953.95",Revenue,Amazon Web Services EMEA SARL,80604,,
Chorley Borough Council,http://statistics.data.gov.uk/id/local-authority/30UE,Central Support Services,1009,CUST - Customer & Digital,Computer Equipment-Maintenance,40105,Communication and Computing,5028,Installation of 2x Excel Cat6 network points to WIFI positions. Installation of 2x Wireless AP`s,18/11/2022,0173836,320.00,Revenue,Ampec,76813,,
Chorley Borough Council,http://statistics.data.gov.uk/id/local-authority/30UE,Central Support Services,1009,CUST - Customer & Digital,Computer Equipment-Maintenance,40105,Communication and Computing,5028,Supply and installation of 12u 600x600 wall mounted comms cabinet in place of existing cabinet. ,11/11/2022,0173837,465.00,Revenue,Ampec,76813,,
Chorley Borough Council,http://statistics.data.gov.uk/id/local-authority/30UE,Central Support Services,1009,GOVN - Policy & Governance,Refreshments,40036,Catering,5024,angel springs water supply,25/11/2022,0173706,789.17,Revenue,Angel Springs Ltd T/A Waterlogic UK,77689,,
Chorley Borough Council,http://statistics.data.gov.uk/id/local-authority/30UE,Central Support Services,1009,EARL - Communities,Impounded Dogs Costs,40207,Miscellaneous Expenses,5034,Stray Dog - Retainer,18/11/2022,0173898,595.20,Revenue,Animal Wardens Ltd,80965,,
Chorley Borough Council,http://statistics.data.gov.uk/id/local-authority/30UE,Central Support Services,1009,EARL - Communities,Impounded Dogs Costs,40207,Miscellaneous Expenses,5034,Stray Dog - Retainer,25/11/2022,0173927,320.00,Revenue,Animal Wardens Ltd,80965,,
Chorley Borough Council,http://statistics.data.gov.uk/id/local-authority/30UE,Central Support Services,1009,EARL - Communities,Impounded Dogs Costs,40207,Miscellaneous Expenses,5034,Stray Dog - Retainer,25/11/2022,0173928,905.60,Revenue,Animal Wardens Ltd,80965,,
Chorley Borough Council,http://statistics.data.gov.uk/id/local-authority/30UE,Central Support Services,1009,CUST - Customer & Digital,Misc Expenses,40200,Miscellaneous Expenses,5034,Cleaning of r/about ADDRESS REDACTED including all traffic management,25/11/2022,0174135,"1,260.00",Revenue,AWAY SERVICES GROUP LTD T/AS BLAST AWAY,83471,,
Chorley Borough Council,http://statistics.data.gov.uk/id/local-authority/30UE,Central Support Services,1009,GOVN - Policy & Governance,Consultants` Fees,40077,Services,5027,VAT advice in relation to  ADDRESS REDACTED,11/11/2022,0173362,"9,000.00",Revenue,Azets Holdings Ltd,86389,,
Chorley Borough Council,http://statistics.data.gov.uk/id/local-authority/30UE,Service Management & Support,1009,CUST - Customer & Digital,Hire Of Vehicles and Plant,30028,Contrct Hire & Operating Lease,5018,As per submission to ITT invitation to Tender for the contract hire with service and maintenance of Grounds Maintenance Machinery,25/11/2022,0172775,"1,242.40",Revenue,Balmers Garden Machinery,17075,,
Chorley Borough Council,http://statistics.data.gov.uk/id/local-authority/30UE,Service Management & Support,1009,CUST - Customer & Digital,Hire Of Vehicles and Plant,30028,Contrct Hire & Operating Lease,5018,As per submission to ITT invitation to Tender for the contract hire with service and maintenance of Grounds Maintenance Machinery,25/11/2022,0173909,"1,242.40",Revenue,Balmers Garden Machinery,17075,,
Chorley Borough Council,http://statistics.data.gov.uk/id/local-authority/30UE,Capital,Capital,PLAN - Planning & Development,Main Contractor,03007,Capital Expenditure,Capital,"Delivery to  ADDRESS REDACTED with previous order for NAME REDACTED. All 12-14 size bare root native trees:-  3nr wild cherry, 1 rowan, 2 silver birc",25/11/2022,0173656,612.50,Capital,Bannister Hall Ltd,22515,,
Chorley Borough Council,http://statistics.data.gov.uk/id/local-authority/30UE,Service Management & Support,1009,CUST - Customer & Digital,Grounds Maintenance Contractor,20043,Grounds Maintenance Costs,5013,Pruning at ADDRESS REDACTED,25/11/2022,0173924,480.00,Revenue,Beardwood Tree Services,77437,,
Chorley Borough Council,http://statistics.data.gov.uk/id/local-authority/30UE,Service Management & Support,1009,CUST - Customer & Digital,Grounds Maintenance Contractor,20043,Grounds Maintenance Costs,5013,Fell Willow to ground level.,25/11/2022,0173925,560.00,Revenue,Beardwood Tree Services,77437,,
Chorley Borough Council,http://statistics.data.gov.uk/id/local-authority/30UE,Service Management & Support,1009,CUST - Customer & Digital,Grounds Maintenance Contractor,20043,Grounds Maintenance Costs,5013,Pruning at ADDRESS REDACTED,25/11/2022,0173926,340.00,Revenue,Beardwood Tree Services,77437,,
Chorley Borough Council,http://statistics.data.gov.uk/id/local-authority/30UE,Culture & Heritage,1036,GOVN - Policy & Governance,Arts Development Initiatives,40187,Miscellaneous Expenses,5034,Artists Fee - Materials for Christmas Installations,18/11/2022,0173923,500.00,Revenue,Beata Podstawa,86982,,
Chorley Borough Council,http://statistics.data.gov.uk/id/local-authority/30UE,Control Accounts,Control,GROW - Commercial & Property,Manual Control Account,00001,Balance Sheet,Balance,,11/11/2022,0173606,275.64,Revenue,Box of Toys,86957,,
Chorley Borough Council,http://statistics.data.gov.uk/id/local-authority/30UE,Tourism,1039,GOVN - Policy & Governance,Tools & Equipment - Hire,40004,"Equipment, Furniture & Materia",5023,"Chorley Remembrance Sunday 13/11/2022 Astley Park, Chorley 5m x 3m LED Screen with Ground Support and Camera system",25/11/2022,0174079,"2,700.00",Revenue,Boxoso Ltd,86995,,
Chorley Borough Council,http://statistics.data.gov.uk/id/local-authority/30UE,Tourism,1039,GOVN - Policy & Governance,Tools & Equipment - Hire,40004,"Equipment, Furniture & Materia",5023,Remembrance Sunday - Chorley Cenotaph Generator hire inc fuel,25/11/2022,0174080,370.00,Revenue,Boxoso Ltd,86995,,
Chorley Borough Council,http://statistics.data.gov.uk/id/local-authority/30UE,Building Control,1090,PLAN - Planning & Development,Agency Staff,13000,Direct Employee Expenses,5001,Agency fees for NAME REDACTED Building Control Officer effective 15.08.2022 for an initial period of 6 months,25/11/2022,0171146,"2,600.00",Revenue,BRG Interim Solutions Ltd,85601,,
Chorley Borough Council,http://statistics.data.gov.uk/id/local-authority/30UE,Recognised Cap Grants & Conts,,PLAN - Planning & Development,Contributions Parish Councils,40144,Grants and Subscriptions,5031,CIL Apr 1 - 30 sept 2022,11/11/2022,0173540,625.73,Revenue,Brindle Parish Council,17023,,
Chorley Borough Council,http://statistics.data.gov.uk/id/local-authority/30UE,Central Support Services,1009,CUST - Customer & Digital,Telephones - Rentals,40083,Communication and Computing,5028,Recurring charges,11/11/2022,0173785,"3,618.26",Revenue,British Telecommunications Plc,17131,,
Chorley Borough Council,http://statistics.data.gov.uk/id/local-authority/30UE,Central Support Services,1009,CUST - Customer & Digital,Telephones - Rentals,40083,Communication and Computing,5028,Adjustment,11/11/2022,0173785,4.00,Revenue,British Telecommunications Plc,17131,,
Chorley Borough Council,http://statistics.data.gov.uk/id/local-authority/30UE,Central Support Services,1009,CUST - Customer & Digital,Telephones - Calls,40084,Communication and Computing,5028,usage charges,11/11/2022,0173785,70.85,Revenue,British Telecommunications Plc,17131,,
Chorley Borough Council,http://statistics.data.gov.uk/id/local-authority/30UE,Central Support Services,1009,CUST - Customer & Digital,Telephones - Rentals,40083,Communication and Computing,5028,Recurring charges,25/11/2022,0174148,202.95,Revenue,British Telecommunications Plc,17131,,
Chorley Borough Council,http://statistics.data.gov.uk/id/local-authority/30UE,Central Support Services,1009,CUST - Customer & Digital,Telephones - Calls,40084,Communication and Computing,5028,Usage charges,25/11/2022,0174148,7.74,Revenue,British Telecommunications Plc,17131,,
Chorley Borough Council,http://statistics.data.gov.uk/id/local-authority/30UE,Central Support Services,1009,CUST - Customer & Digital,Telephones - Other,40085,Communication and Computing,5028,Out of scope,25/11/2022,0174148,40.00,Revenue,British Telecommunications Plc,17131,,
Chorley Borough Council,http://statistics.data.gov.uk/id/local-authority/30UE,Capital,Capital,GROW - Commercial & Property,Other Capital Related Fees,03024,Capital Expenditure,Capital,"Covered Market Works1.Building works to various cabins in the covered market.2.Suspended ceilings, vinyl flooring and white roc to walls3.	Infill var",18/11/2022,0173958,"31,083.74",Capital,Bryan Lee Building Contractors Ltd,78160,,
Chorley Borough Council,http://statistics.data.gov.uk/id/local-authority/30UE,Central Support Services,1009,CUST - Customer & Digital,Printing,40043,"Printing, Stationery & General",5026,BT Phone Book Advertising,04/11/2022,0173530,"1,388.18",Revenue,BT Redcare,21115,,
Chorley Borough Council,http://statistics.data.gov.uk/id/local-authority/30UE,Capital,Capital,GROW - Commercial & Property,Main Contractor,03007,Capital Expenditure,Capital,Astley Hall Renovation and Conservation Project works - new PO as other lapsed financial years,25/11/2022,0174029,"72,493.96",Capital,Bullen Conservation Ltd,68424,,
Chorley Borough Council,http://statistics.data.gov.uk/id/local-authority/30UE,Service Management & Support,1009,CUST - Customer & Digital,Vehicles and Plant Maintenance,30045,Direct Transport Costs,5016,As per WIP No A 30884,25/11/2022,0173903,357.40,Revenue,C P Davidson & Sons Ltd,21093,,
Chorley Borough Council,http://statistics.data.gov.uk/id/local-authority/30UE,Capital,Capital,PLAN - Planning & Development,Main Contractor,03007,Capital Expenditure,Capital,Standard Non Domestic New to Existing - For work at:  ADDRESS REDACTED,11/11/2022,0173725,"2,244.20",Capital,Cadent Gas Ltd,80824,,
Chorley Borough Council,http://statistics.data.gov.uk/id/local-authority/30UE,Democratic Represent and  Mgnt,1007,GOVN - Policy & Governance,Member Development Programme,17007,Indirect Employee Expenses,5002,7 March 2022 - quality and diversity  Member learning session 6.00pm,25/11/2022,0173829,"1,850.00",Revenue,Calico Enterprise,73338,,
Chorley Borough Council,http://statistics.data.gov.uk/id/local-authority/30UE,Business Support,1095,GROW - Commercial & Property,Exhibitions & Special Events,40158,Miscellaneous Expenses,5034,To provide entertainment for October half term Fun Thursday for Market Walk - 27/10/22 Wickedly Wonderful craft workshop with the Market Walk Witches,04/11/2022,0173366,"1,250.00",Revenue,Candy House Events and Entertainment,85030,,
Chorley Borough Council,http://statistics.data.gov.uk/id/local-authority/30UE,Central Support Services,1009,CUST - Customer & Digital,Computer Software-Maintenance,40107,Communication and Computing,5028,contract CC-SaaS-2021 for the Capita One Revenues and Benefits SaaS Set up  Instalment 2,18/11/2022,0173343,"50,000.00",Revenue,Capita Business Services Ltd,17151,,
Chorley Borough Council,http://statistics.data.gov.uk/id/local-authority/30UE,Central Support Services,1009,CUST - Customer & Digital,Computer Software-Additional,40102,Communication and Computing,5028,DWP LA Data Share (LADS) Programme: IT costs for work completed during 01/04/2022 to 30/09/2022,11/11/2022,0173749,"5,537.83",Revenue,Capita Business Services Ltd,17151,,
Chorley Borough Council,http://statistics.data.gov.uk/id/local-authority/30UE,Building Control,1090,PLAN - Planning & Development,Agency Staff,13000,Direct Employee Expenses,5001,Agency fees for Building Control Officer NAME REDACTED July 2022 ongoing contract,11/11/2022,0172766,"1,584.00",Revenue,Carrington West Ltd,83124,,
Chorley Borough Council,http://statistics.data.gov.uk/id/local-authority/30UE,Building Control,1090,PLAN - Planning & Development,Agency Staff,13000,Direct Employee Expenses,5001,Agency fees for Building Control Officer NAME REDACTED July 2022 ongoing contract,11/11/2022,0172767,"1,224.00",Revenue,Carrington West Ltd,83124,,
Chorley Borough Council,http://statistics.data.gov.uk/id/local-authority/30UE,Building Control,1090,PLAN - Planning & Development,Agency Staff,13000,Direct Employee Expenses,5001,Agency fees for Building Control Officer NAME REDACTED July 2022 ongoing contract,11/11/2022,0173101,"2,136.00",Revenue,Carrington West Ltd,83124,,
Chorley Borough Council,http://statistics.data.gov.uk/id/local-authority/30UE,Building Control,1090,PLAN - Planning & Development,Agency Staff,13000,Direct Employee Expenses,5001,Agency fees for Building Control Officer NAME REDACTED July 2022 ongoing contract,11/11/2022,0173662,"1,320.00",Revenue,Carrington West Ltd,83124,,
Chorley Borough Council,http://statistics.data.gov.uk/id/local-authority/30UE,Building Control,1090,PLAN - Planning & Development,Agency Staff,13000,Direct Employee Expenses,5001,Agency fees for Building Control Officer NAME REDACTED July 2022 ongoing contract,11/11/2022,0173821,"1,176.00",Revenue,Carrington West Ltd,83124,,
Chorley Borough Council,http://statistics.data.gov.uk/id/local-authority/30UE,Building Control,1090,PLAN - Planning & Development,Agency Staff,13000,Direct Employee Expenses,5001,Agency fees for Building Control Officer NAME REDACTED July 2022 ongoing contract,25/11/2022,0174091,"1,140.00",Revenue,Carrington West Ltd,83124,,
Chorley Borough Council,http://statistics.data.gov.uk/id/local-authority/30UE,Central Support Services,1009,GROW - Commercial & Property,General Repairs - Reactive,20004,Repairs Maintenance & Alts,5005,"ADDRESS REDACTED Deep clean, sanitisation and disinfection Decontamination unit and air mover hire",18/11/2022,0173955,"1,001.50",Revenue,Castus Solutions Limited,78812,,
Chorley Borough Council,http://statistics.data.gov.uk/id/local-authority/30UE,Central Support Services,1009,CUST - Customer & Digital,CCTV Camera Maintenance,40007,"Equipment, Furniture & Materia",5023,Prayer shelter CCTV Camera 1 - 4MP turret camera sited on the south east front corner of the shelter providing a 90 degree field of view. Camera 2 - ,11/11/2022,0171199,"6,900.57",Revenue,CCTV Services Limited,71330,,
Chorley Borough Council,http://statistics.data.gov.uk/id/local-authority/30UE,Central Support Services,1009,CUST - Customer & Digital,CCTV Camera Maintenance,40007,"Equipment, Furniture & Materia",5023,ADDRESS REDACTED and carry out the following works on a purely best endeavours basis: Install recording equipment to replace the failed equipment on ,25/11/2022,0171200,"3,384.65",Revenue,CCTV Services Limited,71330,,
Chorley Borough Council,http://statistics.data.gov.uk/id/local-authority/30UE,Tourism,1039,GOVN - Policy & Governance,External Contractor,40198,Miscellaneous Expenses,5034,Crew 1D General technician day rate. Lighting Hire Lighting Hire - Gobo Projector.,25/11/2022,0174173,"1,120.00",Revenue,CDS Events,81168,,
Chorley Borough Council,http://statistics.data.gov.uk/id/local-authority/30UE,Recognised Cap Grants & Conts,,PLAN - Planning & Development,Contributions Parish Councils,40144,Grants and Subscriptions,5031,CIL Receipt apr 1 - 30 sept 22,11/11/2022,0173541,563.16,Revenue,Charnock Richard Parish Cncl,16206,,
Chorley Borough Council,http://statistics.data.gov.uk/id/local-authority/30UE,Central Support Services,1009,EARL - Communities,General Subscriptions,40146,Grants and Subscriptions,5031,Please publish an advert for a position at Chorley Council with is a Public Protection Team Leader job with Chorley Council 335305 (ehn-jobs.com) fol,04/11/2022,0172733,800.00,Revenue,Chartered Institute of Environmental Health,16224,,
Chorley Borough Council,http://statistics.data.gov.uk/id/local-authority/30UE,Parking Services,1066,GROW - Commercial & Property,External Contractors,50008,Private Contractors,5042,Processing 075Processing 076Processing 077Processing 079Processing 080Processing 085Processing 086MIPERMIT FEESMIPERMIT CHARGEELECPAYBANKFEEProcessin,18/11/2022,0173895,570.65,Revenue,Chipside Ltd,22063,,
Chorley Borough Council,http://statistics.data.gov.uk/id/local-authority/30UE,Regulatory Services,1048,PLAN - Planning & Development,Taxi Testing & Vehicle Safety Report,40234,Services,5027,mot,18/11/2022,0173873,603.35,Revenue,Chorley Autocare Ltd,17110,,
Chorley Borough Council,http://statistics.data.gov.uk/id/local-authority/30UE,Regulatory Services,1048,PLAN - Planning & Development,Taxi Testing & Vehicle Safety Report,40234,Services,5027,taxi test,18/11/2022,0173873,94.05,Revenue,Chorley Autocare Ltd,17110,,
Chorley Borough Council,http://statistics.data.gov.uk/id/local-authority/30UE,Democratic Represent and  Mgnt,1007,GOVN - Policy & Governance,Grants To Other Organisations,40127,Grants and Subscriptions,5031,Upgrade hot water boiler,11/11/2022,0173808,500.00,Revenue,Chorley Sea Cadets,57317,,
Chorley Borough Council,http://statistics.data.gov.uk/id/local-authority/30UE,Homelessness,1075,EARL - Communities,External Contractor,40198,Miscellaneous Expenses,5034,Chorley Council/Inspire Youth Zone Youth Hub Project,18/11/2022,0173407,"6,869.99",Revenue,Chorley Youth Zone,77339,,
Chorley Borough Council,http://statistics.data.gov.uk/id/local-authority/30UE,Economic Development,1096,GROW - Commercial & Property,Christmas Lights,40179,Miscellaneous Expenses,5034,Christmas install pre-works Real Tree Lights Attend site and test all living trees and connections and provide a condition report with any associated,04/11/2022,0173018,265.00,Revenue,City Illuminations Ltd,77388,,
Chorley Borough Council,http://statistics.data.gov.uk/id/local-authority/30UE,Central Support Services,1009,EARL - Communities,Misc Expenses,40200,Miscellaneous Expenses,5034,Roundabout Area Column displays and Radio switching devices incl fitting in the display,25/11/2022,0174158,530.00,Revenue,City Illuminations Ltd,77388,,
Chorley Borough Council,http://statistics.data.gov.uk/id/local-authority/30UE,Central Support Services,1009,CUST - Customer & Digital,Computer Software-Purchase,40100,Communication and Computing,5028,Opayo Upgrade and associated costs,04/11/2022,0170783,"19,000.00",Revenue,Civica UK Limited,17463,,
Chorley Borough Council,http://statistics.data.gov.uk/id/local-authority/30UE,Homelessness,1075,EARL - Communities,Computer Software-Maintenance,40107,Communication and Computing,5028,"Licence, Support and Maintenance For the Period: 01/10/2022 to 30/09/2023 Additional Annual charge to Chorley for exceeding your Data Storage & Recov",04/11/2022,0171181,"1,422.02",Revenue,Civica UK Limited,17463,,
Chorley Borough Council,http://statistics.data.gov.uk/id/local-authority/30UE,Homelessness,1075,EARL - Communities,Computer Software-Maintenance,40107,Communication and Computing,5028,"Licence, Support and Maintenance for the period: 01/10/2022 to 30/09/2023",11/11/2022,0171182,"11,571.38",Revenue,Civica UK Limited,17463,,
Chorley Borough Council,http://statistics.data.gov.uk/id/local-authority/30UE,Homelessness,1075,EARL - Communities,Computer Software-Purchase,40100,Communication and Computing,5028,Chorley Council`s part of the  fees for the upgrade of the Select Move Abritas system to V14 or the latest release available as defined in the �Selec,11/11/2022,0173326,"9,204.46",Revenue,Civica UK Limited,17463,,
Chorley Borough Council,http://statistics.data.gov.uk/id/local-authority/30UE,Central Support Services,1009,CUST - Customer & Digital,Computer Software-Purchase,40100,Communication and Computing,5028,Opayo Upgrade and associated costs,25/11/2022,0174174,800.00,Revenue,Civica UK Limited,17463,,
Chorley Borough Council,http://statistics.data.gov.uk/id/local-authority/30UE,Recognised Cap Grants & Conts,,PLAN - Planning & Development,Contributions Parish Councils,40144,Grants and Subscriptions,5031,CIl Recepit for 1 Apr - 30 sept 22,11/11/2022,0173542,360.00,Revenue,Clayton-Le-Woods Parish Coun.,17024,,
Chorley Borough Council,http://statistics.data.gov.uk/id/local-authority/30UE,Capital,Capital,GOVN - Policy & Governance,Other Legal Fees,03020,Capital Expenditure,Capital,Payment of legal costs connected with grant of easement and other rights relating to land near  ADDRESS REDACTED Euxton aka Strawberry Meadows & tran,11/11/2022,0172799,"7,010.00",Capital,Clients C/O Harrison Drury Solicitors,85124,,
Chorley Borough Council,http://statistics.data.gov.uk/id/local-authority/30UE,Service Management & Support,1009,CUST - Customer & Digital,Supplies-Grounds Maintenance,40025,"Equipment, Furniture & Materia",5023,As per Invoice 157302,25/11/2022,0174109,394.24,Revenue,Cornthwaite Group,78492,,
Chorley Borough Council,http://statistics.data.gov.uk/id/local-authority/30UE,Recreation & Sport,1037,GROW - Commercial & Property,Gas,20014,Energy Costs,5006,Water street - all seasons,11/11/2022,0173786,"18,942.85",Revenue,Corona Energy Retail 2 Ltd,67249,,
Chorley Borough Council,http://statistics.data.gov.uk/id/local-authority/30UE,Recreation & Sport,1037,GROW - Commercial & Property,Gas,20014,Energy Costs,5006,Lodge Bank,11/11/2022,0173788,"5,113.48",Revenue,Corona Energy Retail 2 Ltd,67249,,
Chorley Borough Council,http://statistics.data.gov.uk/id/local-authority/30UE,Recreation & Sport,1037,GROW - Commercial & Property,Gas,20014,Energy Costs,5006,Centre drive - Clayton Green,11/11/2022,0173789,"1,552.72",Revenue,Corona Energy Retail 2 Ltd,67249,,
Chorley Borough Council,http://statistics.data.gov.uk/id/local-authority/30UE,Business Support,1095,GROW - Commercial & Property,Gas,20014,Energy Costs,5006,Fleet Street Primrose Gardens,11/11/2022,0173790,"3,693.08",Revenue,Corona Energy Retail 2 Ltd,67249,,
Chorley Borough Council,http://statistics.data.gov.uk/id/local-authority/30UE,Recognised Cap Grants & Conts,,PLAN - Planning & Development,Contributions Parish Councils,40144,Grants and Subscriptions,5031,CIL Receipt for Apr 1 - 30 Sept,11/11/2022,0173533,"11,659.49",Revenue,Croston Parish Council,17026,,
Chorley Borough Council,http://statistics.data.gov.uk/id/local-authority/30UE,Central Support Services,1009,CUST - Customer & Digital,Agency Staff,13000,Direct Employee Expenses,5001,Temporary staff to provide additional cover within Customer Services,18/11/2022,0173096,313.20,Revenue,Daniel Adams Recruitment,78104,,
Chorley Borough Council,http://statistics.data.gov.uk/id/local-authority/30UE,Central Support Services,1009,CUST - Customer & Digital,Agency Staff,13000,Direct Employee Expenses,5001,Temporary staff to provide additional cover within Customer Services,04/11/2022,0173097,309.60,Revenue,Daniel Adams Recruitment,78104,,
Chorley Borough Council,http://statistics.data.gov.uk/id/local-authority/30UE,Central Support Services,1009,CUST - Customer & Digital,Agency Staff,13000,Direct Employee Expenses,5001,Temporary staff to provide additional cover within Customer Services,04/11/2022,0173098,327.60,Revenue,Daniel Adams Recruitment,78104,,
Chorley Borough Council,http://statistics.data.gov.uk/id/local-authority/30UE,Central Support Services,1009,CUST - Customer & Digital,Agency Staff,13000,Direct Employee Expenses,5001,Temporary staff to provide additional cover within Customer Services,25/11/2022,0173462,522.00,Revenue,Daniel Adams Recruitment,78104,,
Chorley Borough Council,http://statistics.data.gov.uk/id/local-authority/30UE,Central Support Services,1009,CUST - Customer & Digital,Agency Staff,13000,Direct Employee Expenses,5001,Temporary staff to provide additional cover within Customer Services,25/11/2022,0173463,529.20,Revenue,Daniel Adams Recruitment,78104,,
Chorley Borough Council,http://statistics.data.gov.uk/id/local-authority/30UE,Business Support,1095,GROW - Commercial & Property,Cleaning/Attendants' Services,20041,Cleaning and Domestic Supplies,5012,"Per your week 30 invoice 654729, cleaning cover for 20 hours",11/11/2022,0173741,276.00,Revenue,Daniel Adams Recruitment,78104,,
Chorley Borough Council,http://statistics.data.gov.uk/id/local-authority/30UE,Business Support,1095,GROW - Commercial & Property,Cleaning/Attendants' Services,20041,Cleaning and Domestic Supplies,5012,"Per your week 31 invoice 654758, cleaning cover weekending 30/10/22, 2 hours",11/11/2022,0173745,276.00,Revenue,Daniel Adams Recruitment,78104,,
Chorley Borough Council,http://statistics.data.gov.uk/id/local-authority/30UE,Business Support,1095,GROW - Commercial & Property,Cleaning/Attendants' Services,20041,Cleaning and Domestic Supplies,5012,"Per your week 32 invoice 654801, cleaning cover for week ending 06/1/22. 20 hours",25/11/2022,0174075,276.00,Revenue,Daniel Adams Recruitment,78104,,
Chorley Borough Council,http://statistics.data.gov.uk/id/local-authority/30UE,Business Support,1095,GROW - Commercial & Property,Cleaning/Attendants' Services,20041,Cleaning and Domestic Supplies,5012,"Per your week 33 invoice 654826, cleaning cover for week ending 13/11/22. 20 hours",25/11/2022,0174177,276.00,Revenue,Daniel Adams Recruitment,78104,,
Chorley Borough Council,http://statistics.data.gov.uk/id/local-authority/30UE,Business Support,1095,GROW - Commercial & Property,Fixtures & Fittings - Repair/Mtnce,20028,Fixtures and Fittings,5010,24/7 Maintenance cover for Town Centre Radio System mast and associated equipment. 2022/23,04/11/2022,0173427,950.00,Revenue,DCS 2 Way Radio Ltd,77666,,
Chorley Borough Council,http://statistics.data.gov.uk/id/local-authority/30UE,Service Management & Support,1009,CUST - Customer & Digital,Protective Clothing,40040,"Clothing, Uniforms and Laundry",5025,As per quotation number- 239645 Quantity x1- Size 7 WW60350341 Haix Blue Mountain Quantity x 1- Size 32inch waist- short leg AT4050-M/S-LI Breathefle,11/11/2022,0173511,401.00,Revenue,Dick Leigh,17138,,
Chorley Borough Council,http://statistics.data.gov.uk/id/local-authority/30UE,Service Management & Support,1009,CUST - Customer & Digital,Supplies - Workshop,40246,"Equipment, Furniture & Materia",5023,As per order ref 239695 Document 058441,11/11/2022,0173512,654.91,Revenue,Dick Leigh,17138,,
Chorley Borough Council,http://statistics.data.gov.uk/id/local-authority/30UE,Central Support Services,1009,PLAN - Planning & Development,Stationery,40050,"Printing, Stationery & General",5026,Magicard Pronto 100 Ribbon YMCKO MD100YMCKO X6 as per quote QT-297537-1,18/11/2022,0172749,197.94,Revenue,Digital ID t/a Essentra Security,76077,,
Chorley Borough Council,http://statistics.data.gov.uk/id/local-authority/30UE,Regulatory Services,1048,PLAN - Planning & Development,Printing,40043,"Printing, Stationery & General",5026,BioBade Clear Open Faced Holders Landscape - pack of 100 as per quote QT-297537-1,18/11/2022,0172749,12.99,Revenue,Digital ID t/a Essentra Security,76077,,
Chorley Borough Council,http://statistics.data.gov.uk/id/local-authority/30UE,Regulatory Services,1048,PLAN - Planning & Development,Printing,40043,"Printing, Stationery & General",5026,100 Bespoke Private Hire driver badges as per quote QT-297537-1,18/11/2022,0172749,102.00,Revenue,Digital ID t/a Essentra Security,76077,,
Chorley Borough Council,http://statistics.data.gov.uk/id/local-authority/30UE,Planning Policy,1092,PLAN - Planning & Development,Consultants` Fees,40077,Services,5027,Central Lancashire Housing Needs Study,18/11/2022,0173883,"2,198.85",Revenue,DLP (Consulting Group) Ltd,84490,,
Chorley Borough Council,http://statistics.data.gov.uk/id/local-authority/30UE,Corporate Management,1008,GROW - Commercial & Property,Professional Fees,14011,Direct Employee Expenses,5001,Chorley Council - subsidy control advice / Levelling Up Fund 2,25/11/2022,0170620,"3,468.00",Revenue,DWF Law LLP,78067,,
Chorley Borough Council,http://statistics.data.gov.uk/id/local-authority/30UE,Central Support Services,1009,EARL - Communities,Misc Expenses,40200,Miscellaneous Expenses,5034,Small Environmental Improvement funding,11/11/2022,0173692,490.00,Revenue,Eccleston Recreational Parks,85622,,
Chorley Borough Council,http://statistics.data.gov.uk/id/local-authority/30UE,Central Support Services,1009,EARL - Communities,Misc Expenses,40200,Miscellaneous Expenses,5034,Environmental improvement funding,18/11/2022,0173811,490.00,Revenue,Eccleston Recreational Parks,85622,,
Chorley Borough Council,http://statistics.data.gov.uk/id/local-authority/30UE,Capital,Capital,PLAN - Planning & Development,Main Contractor,03007,Capital Expenditure,Capital,"Preliminary Roost Assessment in relation to bats in three trees (T4, T8 & T9) at the ADDRESS REDACTED Chorley",11/11/2022,0173840,330.00,Capital,Ecology Services,58852,,
Chorley Borough Council,http://statistics.data.gov.uk/id/local-authority/30UE,Parking Services,1066,GROW - Commercial & Property,Fixtures & Fittings - Repair/Mtnce,20028,Fixtures and Fittings,5010,Repairs following vandalism to Friday St car park. Temporary repair to the mesh on upper deck car park Repair to the cage under the up ramp. Replace ,04/11/2022,0173637,690.00,Revenue,Edwards Wrought Iron Ltd,77654,,
Chorley Borough Council,http://statistics.data.gov.uk/id/local-authority/30UE,Central Support Services,1009,CUST - Customer & Digital,Mobile Voice and Data,40086,Communication and Computing,5028,98870244,18/11/2022,0173965,"8,535.90",Revenue,EE - Orange,16486,,
Chorley Borough Council,http://statistics.data.gov.uk/id/local-authority/30UE,Central Support Services,1009,CUST - Customer & Digital,Mobile Voice and Data,40086,Communication and Computing,5028,98870244,18/11/2022,0173966,"9,565.56",Revenue,EE - Orange,16486,,
Chorley Borough Council,http://statistics.data.gov.uk/id/local-authority/30UE,Corporate Management,1008,EARL - Communities,Other Contributions,40145,Grants and Subscriptions,5031,Delivery of support for residents experiencing financial hardship,18/11/2022,0173075,"3,000.00",Revenue,Emerging Futures CiC,81216,,
Chorley Borough Council,http://statistics.data.gov.uk/id/local-authority/30UE,Business Support,1095,GROW - Commercial & Property,Internet Charges,40104,Communication and Computing,5028,"``Call Off`` order for: Operate Growth, April 2022 to March 2023 Connect Growth, April 2022 to March 2023 Call charges and IP addresses for March 202",11/11/2022,0173638,343.23,Revenue,Essensys Ltd,77836,,
Chorley Borough Council,http://statistics.data.gov.uk/id/local-authority/30UE,Business Support,1095,GROW - Commercial & Property,Internet Charges,40104,Communication and Computing,5028,"``Call Off`` order for:Operate Growth, April 2022 to March 2023 Connect Growth, April 2022 to March 2023 Call charges and IP addresses for March 2022",25/11/2022,0174125,"2,950.00",Revenue,Essensys Ltd,77836,,
Chorley Borough Council,http://statistics.data.gov.uk/id/local-authority/30UE,Central Support Services,1009,GROW - Commercial & Property,Planned Maintenance,20006,Repairs Maintenance & Alts,5005,"Parks Flagpole checks x 8 Harpers Lane Rec,     x  1 - Coronation Rec,    x 1 -Yarrow Valley,   x 1  Withnell Nature Reserve,   x  1 Asltey Park, Hal",04/11/2022,0173230,"1,100.00",Revenue,Eurosafe Solutions Limited,66302,,
Chorley Borough Council,http://statistics.data.gov.uk/id/local-authority/30UE,Recognised Cap Grants & Conts,,PLAN - Planning & Development,Contributions Parish Councils,40144,Grants and Subscriptions,5031,CIL Receipt Apr 1 - 30 Sept 2022,11/11/2022,0173534,"62,102.32",Revenue,Euxton Parish Council,16838,,
Chorley Borough Council,http://statistics.data.gov.uk/id/local-authority/30UE,Service Management & Support,1009,CUST - Customer & Digital,Supplies-Grounds Maintenance,40025,"Equipment, Furniture & Materia",5023,Supply 2 cone Buxus & 20 5 litre Lavenders,25/11/2022,0173465,200.00,Revenue,Everglades Nurseries Ltd,20202,,
Chorley Borough Council,http://statistics.data.gov.uk/id/local-authority/30UE,Service Management & Support,1009,CUST - Customer & Digital,Supplies-Grounds Maintenance,40025,"Equipment, Furniture & Materia",5023,,25/11/2022,0173465,165.00,Revenue,Everglades Nurseries Ltd,20202,,
Chorley Borough Council,http://statistics.data.gov.uk/id/local-authority/30UE,Service Management & Support,1009,CUST - Customer & Digital,Supplies-Grounds Maintenance,40025,"Equipment, Furniture & Materia",5023,"Supply 300 Buxus, rootball, 5 litre, 50/60cm",25/11/2022,0173885,"3,000.00",Revenue,Everglades Nurseries Ltd,20202,,
Chorley Borough Council,http://statistics.data.gov.uk/id/local-authority/30UE,Service Management & Support,1009,CUST - Customer & Digital,Supplies - Workshop,40246,"Equipment, Furniture & Materia",5023,As per pro forma No 159762,11/11/2022,0173731,488.08,Revenue,F R Sharrock Ltd,18091,,
Chorley Borough Council,http://statistics.data.gov.uk/id/local-authority/30UE,Central Support Services,1009,CUST - Customer & Digital,Unitary Payment(S),50009,Private Contractors,5042,Provision of Waste and Recycling Services to Chorley Council 2022/23,18/11/2022,0173735,"183,943.08",Revenue,FCC Environment Services (UK) Limited,77903,,
Chorley Borough Council,http://statistics.data.gov.uk/id/local-authority/30UE,Central Support Services,1009,CUST - Customer & Digital,Unitary Payment(S),50009,Private Contractors,5042,Provision of Waste and Recycling Services to Chorley Council 2022/23,18/11/2022,0173775,"197,773.69",Revenue,FCC Environment Services (UK) Limited,77903,,
Chorley Borough Council,http://statistics.data.gov.uk/id/local-authority/30UE,Capital,Capital,GROW - Commercial & Property,Other Capital Related Fees,03024,Capital Expenditure,Capital,extra works carried out increasing the total of the order to,25/11/2022,0173780,"3,621.63",Capital,GK Construction & Project Management Ltd,82901,,
Chorley Borough Council,http://statistics.data.gov.uk/id/local-authority/30UE,Service Management & Support,1009,CUST - Customer & Digital,Hire Of Vehicles and Plant,30028,Contrct Hire & Operating Lease,5018,As per INV00139989 Sweeper rental invoice,11/11/2022,0170809,"8,574.24",Revenue,Go Plant Fleet Services Ltd,80857,,
Chorley Borough Council,http://statistics.data.gov.uk/id/local-authority/30UE,Service Management & Support,1009,CUST - Customer & Digital,Supplies-Grounds Maintenance,40025,"Equipment, Furniture & Materia",5023,6 x Johnston C101 mixed poly wire brushes -5 x Johnston VT652 larger size channel brushes 2 x Johnston VT652 centre wide sweep brush 8 x Schmidt Swin,11/11/2022,0171204,"1,097.87",Revenue,Go Plant Fleet Services Ltd,80857,,
Chorley Borough Council,http://statistics.data.gov.uk/id/local-authority/30UE,Service Management & Support,1009,CUST - Customer & Digital,Hire Of Vehicles and Plant,30028,Contrct Hire & Operating Lease,5018,Extension of the sweepers 12 month Contract - Start date 02/09/22 Johnston CN101 (NUMBER PLATER REDACTED) � contract hire only 2 x Schmidt Swingo 200,11/11/2022,0172744,"10,393.55",Revenue,Go Plant Fleet Services Ltd,80857,,
Chorley Borough Council,http://statistics.data.gov.uk/id/local-authority/30UE,Service Management & Support,1009,CUST - Customer & Digital,Hire Of Vehicles and Plant,30028,Contrct Hire & Operating Lease,5018,Extension of the sweepers 12 month Contract - Start date 02/09/22 Johnston CN101 (NUMBER PLATER REDACTED) � contract hire only - 2 x Schmidt Swingo 2,11/11/2022,0173332,"8,332.30",Revenue,Go Plant Fleet Services Ltd,80857,,
Chorley Borough Council,http://statistics.data.gov.uk/id/local-authority/30UE,Service Management & Support,1009,CUST - Customer & Digital,Supplies-Grounds Maintenance,40025,"Equipment, Furniture & Materia",5023,10 x Schmidt poly wire brushes As per quote from NAME REDACTED,11/11/2022,0173655,552.92,Revenue,Go Plant Fleet Services Ltd,80857,,
Chorley Borough Council,http://statistics.data.gov.uk/id/local-authority/30UE,Capital,Capital,GROW - Commercial & Property,Main Contractor,03007,Capital Expenditure,Capital,"Appointment through RISE Framework for QS services  for the decarbonisation element Town Hall works, with discounted rates",25/11/2022,0172769,"1,485.00",Capital,Gosling Consulting Limited,78380,,
Chorley Borough Council,http://statistics.data.gov.uk/id/local-authority/30UE,Capital,Capital,GROW - Commercial & Property,Consultants Fees,03025,Capital Expenditure,Capital,Client-Side Support - Alker Lane Project (Extension Oct 22),11/11/2022,0173323,"2,125.00",Capital,Gosling Consulting Limited,78380,,
Chorley Borough Council,http://statistics.data.gov.uk/id/local-authority/30UE,Capital,Capital,GROW - Commercial & Property,Main Contractor,03007,Capital Expenditure,Capital,"Appointment through RISE Framework for QS services  for the decarbonisation element Town Hall works, with discounted rates",25/11/2022,0173466,"2,963.00",Capital,Gosling Consulting Limited,78380,,
Chorley Borough Council,http://statistics.data.gov.uk/id/local-authority/30UE,Central Support Services,1009,GROW - Commercial & Property,Professional Fees,40063,Services,5027,Client Support Services - Tatton Gardens Project as per fee proposal - ref A.2-001.,25/11/2022,0174124,"1,700.00",Revenue,Gosling Consulting Limited,78380,,
Chorley Borough Council,http://statistics.data.gov.uk/id/local-authority/30UE,Central Support Services,1009,GOVN - Policy & Governance,Publicity - Advertising,40157,Miscellaneous Expenses,5034,As Per Quotation: QUO 8747 Ref No. 22189 To: Set up of a new subsite using a GOSS Theme for Astley Hall. Colour and logo only with examples of each t,11/11/2022,0173743,"2,500.00",Revenue,GOSS Interactive Limited,20316,,
Chorley Borough Council,http://statistics.data.gov.uk/id/local-authority/30UE,Central Support Services,1009,GOVN - Policy & Governance,Publicity - Advertising,40157,Miscellaneous Expenses,5034,As Per Quotation: QUO 8747 Ref No. 22188 To: Set up of a new subsite using a GOSS Theme for Check Out Chorley. Colour and logo only with examples of ,11/11/2022,0173744,"2,500.00",Revenue,GOSS Interactive Limited,20316,,
Chorley Borough Council,http://statistics.data.gov.uk/id/local-authority/30UE,Central Support Services,1009,PLAN - Planning & Development,Vandalism Repairs,20005,Repairs Maintenance & Alts,5005,Graffiti removal contract August 2022 ongoing,18/11/2022,0173428,930.00,Revenue,Graffiti Away Ltd,78340,,
Chorley Borough Council,http://statistics.data.gov.uk/id/local-authority/30UE,Central Support Services,1009,PLAN - Planning & Development,Vandalism Repairs,20005,Repairs Maintenance & Alts,5005,Graffiti removal contract October 2022 ongoing,18/11/2022,0173428,955.00,Revenue,Graffiti Away Ltd,78340,,
Chorley Borough Council,http://statistics.data.gov.uk/id/local-authority/30UE,Capital,Capital,GROW - Commercial & Property,Other Capital Related Fees,03024,Capital Expenditure,Capital,WS-1500 Stainless Steel Wall shelf 1.5M � qty ordered 8 off (placed on back order due 18th October 2022),11/11/2022,0173772,600.00,Capital,Grafton Projects Limited,76545,,
Chorley Borough Council,http://statistics.data.gov.uk/id/local-authority/30UE,Corporate Management,1008,GOVN - Policy & Governance,External Audit,40064,Services,5027,2022/23 Audit Fees,18/11/2022,0172746,"9,461.50",Revenue,Grant Thornton UK LLP,57322,,
Chorley Borough Council,http://statistics.data.gov.uk/id/local-authority/30UE,Corporate Management,1008,GROW - Commercial & Property,Publicity - Advertising,40157,Miscellaneous Expenses,5034,Social media for Market Walk SHopping Centre Chorley.April - September 2022,11/11/2022,0172771,500.00,Revenue,Gravity,77837,,
Chorley Borough Council,http://statistics.data.gov.uk/id/local-authority/30UE,Corporate Management,1008,GROW - Commercial & Property,Publicity - Advertising,40157,Miscellaneous Expenses,5034,Social media for Market Walk SHopping Centre Chorley.April - September 2022,04/11/2022,0173510,500.00,Revenue,Gravity,77837,,
Chorley Borough Council,http://statistics.data.gov.uk/id/local-authority/30UE,Business Support,1095,GROW - Commercial & Property,Misc Expenses,40200,Miscellaneous Expenses,5034,"To disassemble, move and reassemble hot desks/pods on Monday 24th October, as quoted 21/10/22",04/11/2022,0173518,460.00,Revenue,Gresham Office Furniture Ltd,78114,,
Chorley Borough Council,http://statistics.data.gov.uk/id/local-authority/30UE,Capital,Capital,PLAN - Planning & Development,Main Contractor,03007,Capital Expenditure,Capital,Foxcote Play Area Refurbishment Quote Ref Q-29170-L1J6.,11/11/2022,0173819,"46,800.00",Capital,Hags Smp LTD,22492,,
Chorley Borough Council,http://statistics.data.gov.uk/id/local-authority/30UE,Capital,Capital,GROW - Commercial & Property,Main Contractor,03007,Capital Expenditure,Capital,"To provide services - Cutting 300 x 300 x 80mm blocks to 150 x 300 x 80mm, 8.64m2",04/11/2022,0173095,"1,021.59",Capital,Hardscape Products Ltd,17549,,
Chorley Borough Council,http://statistics.data.gov.uk/id/local-authority/30UE,Capital,Capital,GROW - Commercial & Property,Main Contractor,03007,Capital Expenditure,Capital,"Cutting 300 x 200 x 80mm blocks to 150 x 200 x 80mm, 9.60m2",04/11/2022,0173095,"1,344.00",Capital,Hardscape Products Ltd,17549,,
Chorley Borough Council,http://statistics.data.gov.uk/id/local-authority/30UE,Culture & Heritage,1036,GOVN - Policy & Governance,General Subscriptions,40146,Grants and Subscriptions,5031,Harwell Priority User Subscription December 2022 - November 2023.,18/11/2022,0173676,330.00,Revenue,Harwell Technical Services Ltd,18416,,
Chorley Borough Council,http://statistics.data.gov.uk/id/local-authority/30UE,Central Support Services,1009,GROW - Commercial & Property,Agency Staff,13000,Direct Employee Expenses,5001,NAME REDACTED - Estates Surveyor Chorley Council (12 week contract),11/11/2022,0170022,"1,785.00",Revenue,Hays Senior Finance,20078,,
Chorley Borough Council,http://statistics.data.gov.uk/id/local-authority/30UE,Central Support Services,1009,GROW - Commercial & Property,Agency Staff,13000,Direct Employee Expenses,5001,NAME REDACTED - Estates Surveyor Chorley Council (12 week contract),11/11/2022,0170857,"1,785.00",Revenue,Hays Senior Finance,20078,,
Chorley Borough Council,http://statistics.data.gov.uk/id/local-authority/30UE,Central Support Services,1009,GROW - Commercial & Property,Agency Staff,13000,Direct Employee Expenses,5001,NAME REDACTED - Estates Surveyor Chorley Council (12 week contract),11/11/2022,0171207,"1,785.00",Revenue,Hays Senior Finance,20078,,
Chorley Borough Council,http://statistics.data.gov.uk/id/local-authority/30UE,Central Support Services,1009,GROW - Commercial & Property,Agency Staff,13000,Direct Employee Expenses,5001,NAME REDACTED - Estates Surveyor Chorley Council (12 week contract),11/11/2022,0172765,"1,428.00",Revenue,Hays Senior Finance,20078,,
Chorley Borough Council,http://statistics.data.gov.uk/id/local-authority/30UE,Central Support Services,1009,GROW - Commercial & Property,Agency Staff,13000,Direct Employee Expenses,5001,NAME REDACTED - Estates Surveyor Chorley Council (12 week contract),11/11/2022,0173029,"1,785.00",Revenue,Hays Senior Finance,20078,,
Chorley Borough Council,http://statistics.data.gov.uk/id/local-authority/30UE,Economic Development,1096,GROW - Commercial & Property,Agency Staff,13000,Direct Employee Expenses,5001,NAME REDACTED- 24 week contract 36.5 hours per week= Service Lead 50% Chorley Borough Council,11/11/2022,0173254,"2,760.00",Revenue,Hays Senior Finance,20078,,
Chorley Borough Council,http://statistics.data.gov.uk/id/local-authority/30UE,Recognised Cap Grants & Conts,,PLAN - Planning & Development,Contributions Parish Councils,40144,Grants and Subscriptions,5031,CIL Receipt Apr 1 - 30 Sept 22,11/11/2022,0173535,568.14,Revenue,Heath Charnock Parish Council,16208,,
Chorley Borough Council,http://statistics.data.gov.uk/id/local-authority/30UE,Corporate Management,1008,EARL - Communities,Other Contributions,40145,Grants and Subscriptions,5031,Delivery of support for residents experiencing financial hardship,18/11/2022,0173073,"3,000.00",Revenue,Help The Homeless (Chorley),16716,,
Chorley Borough Council,http://statistics.data.gov.uk/id/local-authority/30UE,Service Management & Support,1009,CUST - Customer & Digital,External Contractor,40198,Miscellaneous Expenses,5034,Astley park rails Quotation,25/11/2022,0173508,"1,100.00",Revenue,Henry Nightingale & Son,17923,,
Chorley Borough Council,http://statistics.data.gov.uk/id/local-authority/30UE,Central Support Services,1009,CUST - Customer & Digital,Computer Software-Purchase,40100,Communication and Computing,5028,Access control hardwareDoor installation and configuration (including PM) Time recording hardware Professional Services Total Capital (�) Revenue Tim,18/11/2022,0173467,"2,105.00",Revenue,Hfx Ltd,17164,,
Chorley Borough Council,http://statistics.data.gov.uk/id/local-authority/30UE,Planning Policy,1092,PLAN - Planning & Development,Consultants` Fees,40077,Services,5027,Stage 2 Density Work,18/11/2022,0173884,"4,400.00",Revenue,Hive Land & Planning Limited,77330,,
Chorley Borough Council,http://statistics.data.gov.uk/id/local-authority/30UE,Recognised Cap Grants & Conts,,PLAN - Planning & Development,Contributions Parish Councils,40144,Grants and Subscriptions,5031,CIL Receipt 1 Apr - 30 Sep 2022,11/11/2022,0173536,"12,271.60",Revenue,Hoghton Parish Council,16188,,
Chorley Borough Council,http://statistics.data.gov.uk/id/local-authority/30UE,Central Support Services,1009,CUST - Customer & Digital,Telephones - Other,40085,Communication and Computing,5028,Hybrit SIP charges June 22,18/11/2022,0173507,585.00,Revenue,Hybrit LLP,77925,,
Chorley Borough Council,http://statistics.data.gov.uk/id/local-authority/30UE,Central Support Services,1009,CUST - Customer & Digital,Computer Equipment-Maintenance,40105,Communication and Computing,5028,NAME REDACTED PM,18/11/2022,0173902,"6,500.00",Revenue,Hybrit LLP,77925,,
Chorley Borough Council,http://statistics.data.gov.uk/id/local-authority/30UE,Corporate Management,1008,GOVN - Policy & Governance,Other Fees,40212,Miscellaneous Expenses,5034,Subsidy for the provision of a meals on wheels service in Chorley up to 9 October 2022,11/11/2022,0173289,"1,900.50",Revenue,I Care GB Ltd,77247,,
Chorley Borough Council,http://statistics.data.gov.uk/id/local-authority/30UE,Business Support,1095,GROW - Commercial & Property,Refreshments,40036,Catering,5024,"Deliveries for September 2022, your invoice 9069290922",04/11/2022,0173515,300.08,Revenue,I W Critchley & Son,77615,,
Chorley Borough Council,http://statistics.data.gov.uk/id/local-authority/30UE,Business Support,1095,GROW - Commercial & Property,Refreshments,40036,Catering,5024,OCT Milk Deliveries invoice no- 9069271022,11/11/2022,0173759,347.20,Revenue,I W Critchley & Son,77615,,
Chorley Borough Council,http://statistics.data.gov.uk/id/local-authority/30UE,Tourism,1039,GOVN - Policy & Governance,Publicity - Advertising,40157,Miscellaneous Expenses,5034,Advertising in Gardener`s World - North West Region for Chorley Flower Show,18/11/2022,0173834,968.03,Revenue,Immediate Media London Ltd,70473,,
Chorley Borough Council,http://statistics.data.gov.uk/id/local-authority/30UE,Central Support Services,1009,CUST - Customer & Digital,General Subscriptions,40146,Grants and Subscriptions,5031,2022/23 renewal membership,18/11/2022,0171109,"2,320.00",Revenue,iNetwork (Tameside Council),19554,,
Chorley Borough Council,http://statistics.data.gov.uk/id/local-authority/30UE,Central Support Services,1009,CUST - Customer & Digital,General Subscriptions,40146,Grants and Subscriptions,5031,2022/23 renewal membership,18/11/2022,0171198,"2,320.00",Revenue,iNetwork (Tameside Council),19554,,
Chorley Borough Council,http://statistics.data.gov.uk/id/local-authority/30UE,Central Support Services,1009,GOVN - Policy & Governance,Refuse Collection,20037,Cleaning and Domestic Supplies,5012,supply of hygiene services to all council sites,25/11/2022,0174140,"2,696.52",Revenue,Initial,78488,,
Chorley Borough Council,http://statistics.data.gov.uk/id/local-authority/30UE,Control Accounts,Control,System,Manual Control Account,00001,Balance Sheet,Balance,,11/11/2022,0173667,962.00,Revenue,Inland Revenue 065py00102078,17445,,
Chorley Borough Council,http://statistics.data.gov.uk/id/local-authority/30UE,Business Support,1095,GROW - Commercial & Property,Furniture - Purchase,40012,"Equipment, Furniture & Materia",5023,6x Grey stools for Primrose Cafe window counter eachDelivery charge,18/11/2022,0173887,611.50,Revenue,JB Commercial Interiors LTS T/A JB Comm Furniture,85623,,
Chorley Borough Council,http://statistics.data.gov.uk/id/local-authority/30UE,Culture & Heritage,1036,GOVN - Policy & Governance,Exhibitions & Special Events,40158,Miscellaneous Expenses,5034,Remaining performance fee for Astley Illuminated 22 Oct 2022,11/11/2022,0173761,"1,200.00",Revenue,Jenny Reeves,84238,,
Chorley Borough Council,http://statistics.data.gov.uk/id/local-authority/30UE,Culture & Heritage,1036,GOVN - Policy & Governance,Exhibitions & Special Events,40158,Miscellaneous Expenses,5034,Musician Fee for Astley Illuminated 22 Oct 2022,11/11/2022,0173761,300.00,Revenue,Jenny Reeves,84238,,
Chorley Borough Council,http://statistics.data.gov.uk/id/local-authority/30UE,Culture & Heritage,1036,GOVN - Policy & Governance,Arts Development Initiatives,40187,Miscellaneous Expenses,5034,Fee for additional works for Illuminated event due to event postponement.,18/11/2022,0173916,"1,000.00",Revenue,Jenny Reeves,84238,,
Chorley Borough Council,http://statistics.data.gov.uk/id/local-authority/30UE,Central Support Services,1009,GROW - Commercial & Property,Main Contractor,03007,Capital Expenditure,Capital,Alker Lane Design & Build Contract,25/11/2022,0174078,"203,552.17",Revenue,John Turner Construction Group Limited,82376,,
Chorley Borough Council,http://statistics.data.gov.uk/id/local-authority/30UE,Capital,Capital,PLAN - Planning & Development,Main Contractor,03007,Capital Expenditure,Capital,Construction of a Sports Pavilion at Wigan Lane Playing Fields with associated infrastructure and landscaping as set out in the tender document.,25/11/2022,0174178,"59,203.88",Capital,John Wade Groundworks Ltd,76676,,
Chorley Borough Council,http://statistics.data.gov.uk/id/local-authority/30UE,Tourism,1039,GOVN - Policy & Governance,External Contractor,40198,Miscellaneous Expenses,5034,"Appearance at Chorley Flower Show  This is inclusive of 3 days at the show, prep time, flowers and materials for all the demos, travel expenses, brea",18/11/2022,0169970,"2,750.00",Revenue,Jonathan Moseley,78153,,
Chorley Borough Council,http://statistics.data.gov.uk/id/local-authority/30UE,Capital,Capital,GROW - Commercial & Property,Consultants Fees,03025,Capital Expenditure,Capital,Extended MEP Consultancy Services to RIBA Stage 7 for the Alker Lane development,25/11/2022,0174076,"4,900.00",Capital,JRB Environmental Design Limited,80610,,
Chorley Borough Council,http://statistics.data.gov.uk/id/local-authority/30UE,Capital,Capital,EARL - Communities,Grants,03002,Capital Expenditure,Capital,Si-393,04/11/2022,0173468,"5,100.00",Capital,K Berry Ltd,16421,,
Chorley Borough Council,http://statistics.data.gov.uk/id/local-authority/30UE,Capital,Capital,EARL - Communities,Grants,03002,Capital Expenditure,Capital,SI-394,04/11/2022,0173468,"3,448.00",Capital,K Berry Ltd,16421,,
Chorley Borough Council,http://statistics.data.gov.uk/id/local-authority/30UE,Capital,Capital,EARL - Communities,Grants,03002,Capital Expenditure,Capital,SI-395,04/11/2022,0173468,"5,880.00",Capital,K Berry Ltd,16421,,
Chorley Borough Council,http://statistics.data.gov.uk/id/local-authority/30UE,Capital,Capital,EARL - Communities,Grants,03002,Capital Expenditure,Capital,SI-396,04/11/2022,0173468,"6,215.00",Capital,K Berry Ltd,16421,,
Chorley Borough Council,http://statistics.data.gov.uk/id/local-authority/30UE,Capital,Capital,EARL - Communities,Grants,03002,Capital Expenditure,Capital,SI-397,04/11/2022,0173468,"4,379.00",Capital,K Berry Ltd,16421,,
Chorley Borough Council,http://statistics.data.gov.uk/id/local-authority/30UE,Capital,Capital,EARL - Communities,Grants,03002,Capital Expenditure,Capital,SI-398,04/11/2022,0173468,860.00,Capital,K Berry Ltd,16421,,
Chorley Borough Council,http://statistics.data.gov.uk/id/local-authority/30UE,Service Management & Support,1009,CUST - Customer & Digital,Protective Clothing,40040,"Clothing, Uniforms and Laundry",5025,"Quantity x 5 Size XXL  x 6  XL  x10 Large x10 Medium x5 Small gatta Thor III Zip Fleece Jacket 10RE500, colour in RED, 380gm 100% Polyester Super Ant",11/11/2022,0171172,521.22,Revenue,Key Engineering & Hygene Supplies,51615,,
Chorley Borough Council,http://statistics.data.gov.uk/id/local-authority/30UE,Service Management & Support,1009,CUST - Customer & Digital,Protective Clothing,40040,"Clothing, Uniforms and Laundry",5025,"Quantity x 6- Size Medium x 6- Size Large x 6- Size XL High-Vis, Yellow, 100% waterproof, windproof and breathable outer trousers, tear resistant, fl",11/11/2022,0173506,433.28,Revenue,Key Engineering & Hygene Supplies,51615,,
Chorley Borough Council,http://statistics.data.gov.uk/id/local-authority/30UE,Planning Policy,1092,PLAN - Planning & Development,Consultants` Fees,40077,Services,5027,Local Plan Support: Open Space & Playing Pitches,18/11/2022,0172982,"4,140.00",Revenue,Knight Kavanah & Page,20440,,
Chorley Borough Council,http://statistics.data.gov.uk/id/local-authority/30UE,Capital,Capital,PLAN - Planning & Development,Main Contractor,03007,Capital Expenditure,Capital,"Highways Act 1980 - s278 agreement - ADDRESS REDACTED, Chorley (Our Ref: 894.15379) Fees for the County Councils legal costs, highways administration",11/11/2022,0173770,"1,375.00",Capital,Lancashire County Council,17758,,
Chorley Borough Council,http://statistics.data.gov.uk/id/local-authority/30UE,Capital,Capital,EARL - Communities,Grants,03002,Capital Expenditure,Capital,DFG - 22/00084/CAG,18/11/2022,0173810,"1,228.00",Capital,Lancashire County Council,17758,,
Chorley Borough Council,http://statistics.data.gov.uk/id/local-authority/30UE,Corporate Management,1008,GOVN - Policy & Governance,Other Contributions,40145,Grants and Subscriptions,5031,Shared bus services covering the period from April 2022 to March 2023,18/11/2022,0173827,"17,547.09",Revenue,Lancashire County Council,17758,,
Chorley Borough Council,http://statistics.data.gov.uk/id/local-authority/30UE,Central Support Services,1009,CUST - Customer & Digital,Clinical Waste Collection,50007,Private Contractors,5042,Domestic clinical waste collections 2022,25/11/2022,0173905,"2,404.70",Revenue,Lancashire Environmental Services,82309,,
Chorley Borough Council,http://statistics.data.gov.uk/id/local-authority/30UE,Business Support,1095,GROW - Commercial & Property,Planned Maintenance,20006,Repairs Maintenance & Alts,5005,Strawberry fields  - Heating and Air Con Planned Maintenance and remedials,04/11/2022,0173196,"4,158.00",Revenue,Lancashire Gas Services Ltd,78192,,
Chorley Borough Council,http://statistics.data.gov.uk/id/local-authority/30UE,Central Support Services,1009,GROW - Commercial & Property,General Repairs - Reactive,20004,Repairs Maintenance & Alts,5005,Community Centres   - Gas / Air Con / Plumbing  Reactive Repairs,11/11/2022,0173647,451.00,Revenue,Lancashire Gas Services Ltd,78192,,
Chorley Borough Council,http://statistics.data.gov.uk/id/local-authority/30UE,Capital,Capital,GROW - Commercial & Property,Main Contractor,03007,Capital Expenditure,Capital,"All SeasonsQuotation: QUO02842We thank you for your valued enquiry and have much pleasure in submitting our costs as detailed below, works to include",11/11/2022,0173669,"3,360.00",Capital,Lancashire Gas Services Ltd,78192,,
Chorley Borough Council,http://statistics.data.gov.uk/id/local-authority/30UE,Capital,Capital,GROW - Commercial & Property,Main Contractor,03007,Capital Expenditure,Capital,Labour,11/11/2022,0173669,"2,660.00",Capital,Lancashire Gas Services Ltd,78192,,
Chorley Borough Council,http://statistics.data.gov.uk/id/local-authority/30UE,Capital,Capital,GROW - Commercial & Property,Other Contractor,03012,Capital Expenditure,Capital,for reconfiguration works to strawberry fields air conditioning & ventilation systems as per quote QUO02247,11/11/2022,0173670,"2,850.00",Capital,Lancashire Gas Services Ltd,78192,,
Chorley Borough Council,http://statistics.data.gov.uk/id/local-authority/30UE,Capital,Capital,GROW - Commercial & Property,Other Contractor,03012,Capital Expenditure,Capital,Labour,11/11/2022,0173670,"4,722.40",Capital,Lancashire Gas Services Ltd,78192,,
Chorley Borough Council,http://statistics.data.gov.uk/id/local-authority/30UE,Central Support Services,1009,GROW - Commercial & Property,General Repairs - Reactive,20004,Repairs Maintenance & Alts,5005,Astley hall and Buildings   - Gas / Air Con / Plumbing  Reactive Repairs,11/11/2022,0173681,460.06,Revenue,Lancashire Gas Services Ltd,78192,,
Chorley Borough Council,http://statistics.data.gov.uk/id/local-authority/30UE,Central Support Services,1009,GROW - Commercial & Property,General Repairs - Reactive,20004,Repairs Maintenance & Alts,5005,Cotswold   - Gas / Air Con / Plumbing  Reactive Repairs,11/11/2022,0173685,341.73,Revenue,Lancashire Gas Services Ltd,78192,,
Chorley Borough Council,http://statistics.data.gov.uk/id/local-authority/30UE,Central Support Services,1009,GROW - Commercial & Property,General Repairs - Reactive,20004,Repairs Maintenance & Alts,5005,Astley hall and Buildings   - Gas / Air Con / Plumbing  Reactive Repairs,11/11/2022,0173688,252.34,Revenue,Lancashire Gas Services Ltd,78192,,
Chorley Borough Council,http://statistics.data.gov.uk/id/local-authority/30UE,Community Development,1097,GROW - Commercial & Property,General Repairs - Reactive,20004,Repairs Maintenance & Alts,5005,CAB  35-39 Market St  - Gas / Air Con / Plumbing  Reactive Repairs,11/11/2022,0173691,152.00,Revenue,Lancashire Gas Services Ltd,78192,,
Chorley Borough Council,http://statistics.data.gov.uk/id/local-authority/30UE,Community Development,1097,GROW - Commercial & Property,General Repairs - Reactive,20004,Repairs Maintenance & Alts,5005,CAB - Non CIS,11/11/2022,0173691,178.20,Revenue,Lancashire Gas Services Ltd,78192,,
Chorley Borough Council,http://statistics.data.gov.uk/id/local-authority/30UE,Service Management & Support,1009,CUST - Customer & Digital,Vehicles and Plant Maintenance,30045,Direct Transport Costs,5016,CUSTOMER JOB NO. 6845 Description NUMBER PLATE REDACTED - Investigate Oil Leak - Fit new front pads and torque up wheel nuts to 700NM - Remove PTO pu,18/11/2022,0172712,337.09,Revenue,Lancashire Waste Services,78129,,
Chorley Borough Council,http://statistics.data.gov.uk/id/local-authority/30UE,Planning Policy,1092,PLAN - Planning & Development,Consultants` Fees,40077,Services,5027,"Assistance in progressing work on the Central Lancashire Local Plan Land Use Study, and Development of Policies and Topic Paper",18/11/2022,0173859,"33,564.00",Revenue,Land Use Consultants (LUC) Ltd,81849,,
Chorley Borough Council,http://statistics.data.gov.uk/id/local-authority/30UE,Capital,Capital,GROW - Commercial & Property,Main Contractor,03007,Capital Expenditure,Capital,To provide various works in the town centre: Take up & re-erect bollards at Market & Market Street,11/11/2022,0173352,"1,745.00",Capital,Landscape Engineering Ltd,54727,,
Chorley Borough Council,http://statistics.data.gov.uk/id/local-authority/30UE,Capital,Capital,GROW - Commercial & Property,Main Contractor,03007,Capital Expenditure,Capital,Take up & re-erect vehicular barrier & hanging post at Brunswick Street,11/11/2022,0173352,"1,480.00",Capital,Landscape Engineering Ltd,54727,,
Chorley Borough Council,http://statistics.data.gov.uk/id/local-authority/30UE,Capital,Capital,GROW - Commercial & Property,Main Contractor,03007,Capital Expenditure,Capital,Provide & erect pedestrian guardrail outside Booths,11/11/2022,0173352,"1,595.00",Capital,Landscape Engineering Ltd,54727,,
Chorley Borough Council,http://statistics.data.gov.uk/id/local-authority/30UE,Capital,Capital,GROW - Commercial & Property,Main Contractor,03007,Capital Expenditure,Capital,"Supply & erection of height restriction barriers, lifting barrier, permanent bollards and minor paving works at various car parks in Chorley as more ",18/11/2022,0173835,"35,659.10",Capital,Landscape Engineering Ltd,54727,,
Chorley Borough Council,http://statistics.data.gov.uk/id/local-authority/30UE,Open Spaces,1038,GROW - Commercial & Property,Consultants` Fees,40077,Services,5027,Fees - Valuation - Astley Coach House,18/11/2022,0167498,450.00,Revenue,Lea Hough & Co LLP,76318,,
Chorley Borough Council,http://statistics.data.gov.uk/id/local-authority/30UE,Corporate Management,1008,GOVN - Policy & Governance,Corp Training Organisational Development,17006,Indirect Employee Expenses,5002,Year 3 costs,18/11/2022,0170926,"18,976.33",Revenue,Learning Pool Limited,76161,,
Chorley Borough Council,http://statistics.data.gov.uk/id/local-authority/30UE,Economic Development,1096,GOVN - Policy & Governance,Car Leasing Payment,14100,Direct Employee Expenses,5001,NUMBER PLATE REDACTED: NAME REDACTED (Annual),11/11/2022,0173630,"2,230.15",Revenue,LeasePlan UK Ltd T/A Automotive Leasing,65197,,
Chorley Borough Council,http://statistics.data.gov.uk/id/local-authority/30UE,Economic Development,1096,GOVN - Policy & Governance,Car Leasing Payment,14100,Direct Employee Expenses,5001,VAT,11/11/2022,0173630,197.03,Revenue,LeasePlan UK Ltd T/A Automotive Leasing,65197,,
Chorley Borough Council,http://statistics.data.gov.uk/id/local-authority/30UE,Control Accounts,Control,GOVN - Policy & Governance,Manual Control Account,00001,Balance Sheet,Balance,- VAT,11/11/2022,0173630,-197.03,Revenue,LeasePlan UK Ltd T/A Automotive Leasing,65197,,
Chorley Borough Council,http://statistics.data.gov.uk/id/local-authority/30UE,Central Support Services,1009,CUST - Customer & Digital,Professional Fees,14011,Direct Employee Expenses,5001,Empty Homes Review 2022,25/11/2022,0173742,"2,031.56",Revenue,Liberata (Capacity Grid),67989,,
Chorley Borough Council,http://statistics.data.gov.uk/id/local-authority/30UE,Central Support Services,1009,CUST - Customer & Digital,Professional Fees,14011,Direct Employee Expenses,5001,Empty Homes Review 2022,18/11/2022,0173860,"6,902.93",Revenue,Liberata (Capacity Grid),67989,,
Chorley Borough Council,http://statistics.data.gov.uk/id/local-authority/30UE,Capital,Capital,EARL - Communities,Grants,03002,Capital Expenditure,Capital,work done by liberata,04/11/2022,0173492,"2,039.00",Capital,Liberata UK,20716,,
Chorley Borough Council,http://statistics.data.gov.uk/id/local-authority/30UE,Regulatory Services,1048,PLAN - Planning & Development,Professional Fees,14011,Direct Employee Expenses,5001,DVLA driver management fees and electronic checks for taxi drivers April 2021 onging,11/11/2022,0173782,467.80,Revenue,Licence Bureau Limited,71233,,
Chorley Borough Council,http://statistics.data.gov.uk/id/local-authority/30UE,Central Support Services,1009,GROW - Commercial & Property,Planned Maintenance,20006,Repairs Maintenance & Alts,5005,"West Way Sports Hub 
Carry out a Test & Inspection of the lightning protection system",18/11/2022,0173960,265.00,Revenue,Lightning Consultants (UK) Ltd,17446,,
Chorley Borough Council,http://statistics.data.gov.uk/id/local-authority/30UE,Democratic Represent and  Mgnt,1007,GOVN - Policy & Governance,Grants To Other Organisations,40127,Grants and Subscriptions,5031,Train 2 group leaders,11/11/2022,0173809,300.00,Revenue,Lions Running Community,86960,,
Chorley Borough Council,http://statistics.data.gov.uk/id/local-authority/30UE,Central Support Services,1009,GOVN - Policy & Governance,HR Approved Occ Health Fees,15201,Indirect Employee Expenses,5002,Counselling sessions for staff September 2022,11/11/2022,0173712,765.00,Revenue,Livewell Counselling Service,63084,,
Chorley Borough Council,http://statistics.data.gov.uk/id/local-authority/30UE,Corporate Management,1008,GROW - Commercial & Property,Exhibitions & Special Events,40158,Miscellaneous Expenses,5034,"To supply entertainment for Market Walk fun Thursday on the 27th October 22

10am - 4pm",04/11/2022,0170928,550.00,Revenue,Louby Lou Ltd,76335,,
Chorley Borough Council,http://statistics.data.gov.uk/id/local-authority/30UE,Business Support,1095,GROW - Commercial & Property,Stationery,40050,"Printing, Stationery & General",5026,2x Brother TN247BK ink cartridge Black 2x Brother TN247Y ink cartridge Yellow 2x Brother TN247C ink cartridge Cyan 2x Brother TN247M ink cartridge Ma,04/11/2022,0173479,539.24,Revenue,Lyreco UK Ltd,17623,,
Chorley Borough Council,http://statistics.data.gov.uk/id/local-authority/30UE,Service Management & Support,1009,CUST - Customer & Digital,Grounds Maintenance Contractor,20043,Grounds Maintenance Costs,5013,Walkers Tree Services  - Invoice 65,11/11/2022,0173765,"5,090.00",Revenue,M J Walker,62044,,
Chorley Borough Council,http://statistics.data.gov.uk/id/local-authority/30UE,Building Control,1090,PLAN - Planning & Development,Agency Staff,13000,Direct Employee Expenses,5001,Agency fees for NAME REDACTED Building Control Officer effective 03.10.2022 x 3 days for 2 weeks plus travel costs,11/11/2022,0173429,"1,344.00",Revenue,Matchtech,77343,,
Chorley Borough Council,http://statistics.data.gov.uk/id/local-authority/30UE,Building Control,1090,PLAN - Planning & Development,Agency Staff,13000,Direct Employee Expenses,5001,Agency fees for NAME REDACTED Building Control Officer effective 29.09.2022 x 2 days for 2 weeks plus travel costs,11/11/2022,0173660,"2,100.00",Revenue,Matchtech,77343,,
Chorley Borough Council,http://statistics.data.gov.uk/id/local-authority/30UE,Building Control,1090,PLAN - Planning & Development,Agency Staff,13000,Direct Employee Expenses,5001,Agency fees for NAME REDACTED Building Control Officer effective 29.09.2022 x 2 days for 2 weeks plus travel costs,11/11/2022,0173668,840.00,Revenue,Matchtech,77343,,
Chorley Borough Council,http://statistics.data.gov.uk/id/local-authority/30UE,Building Control,1090,PLAN - Planning & Development,Agency Staff,13000,Direct Employee Expenses,5001,Agency fees forNAME REDACTED Building Control Officer effective 03.10.2022 x 3 days for 2 weeks plus travel costs,18/11/2022,0173709,"1,344.00",Revenue,Matchtech,77343,,
Chorley Borough Council,http://statistics.data.gov.uk/id/local-authority/30UE,Building Control,1090,PLAN - Planning & Development,Agency Staff,13000,Direct Employee Expenses,5001,Commenced 17.10.2022 agency fees for NAME REDACTED 37 hours p/w and NAME REDACTED 24 hours p/w until end of financial year 22/23,18/11/2022,0173755,"2,100.00",Revenue,Matchtech,77343,,
Chorley Borough Council,http://statistics.data.gov.uk/id/local-authority/30UE,Building Control,1090,PLAN - Planning & Development,Agency Staff,13000,Direct Employee Expenses,5001,Commenced 17.10.2022 agency fees for NAME REDACTED 37 hours p/w and NAME REDACTED 24 hours p/w until end of financial year 22/23,25/11/2022,0174086,"1,344.00",Revenue,Matchtech,77343,,
Chorley Borough Council,http://statistics.data.gov.uk/id/local-authority/30UE,Recognised Cap Grants & Conts,,PLAN - Planning & Development,Contributions Parish Councils,40144,Grants and Subscriptions,5031,CIL Receipt 1 Apr - 30 Set 2022,11/11/2022,0173537,"16,134.82",Revenue,Mawdesley Parish Council,17570,,
Chorley Borough Council,http://statistics.data.gov.uk/id/local-authority/30UE,Central Support Services,1009,GROW - Commercial & Property,Planned Maintenance,20006,Repairs Maintenance & Alts,5005,Astley Hall and Buildings  - Monthly Water Monitoring 12 mths,18/11/2022,0173959,75.00,Revenue,Maxigiene Environmental Services Ltd,67160,,
Chorley Borough Council,http://statistics.data.gov.uk/id/local-authority/30UE,Central Support Services,1009,GROW - Commercial & Property,Planned Maintenance,20006,Repairs Maintenance & Alts,5005,Parks Buildings  - Monthly Water Monitoring 12 mths,18/11/2022,0173959,40.00,Revenue,Maxigiene Environmental Services Ltd,67160,,
Chorley Borough Council,http://statistics.data.gov.uk/id/local-authority/30UE,Central Support Services,1009,GROW - Commercial & Property,Planned Maintenance,20006,Repairs Maintenance & Alts,5005,Community Centres  - Monthly Water Monitoring 12 mths,18/11/2022,0173959,169.16,Revenue,Maxigiene Environmental Services Ltd,67160,,
Chorley Borough Council,http://statistics.data.gov.uk/id/local-authority/30UE,Central Support Services,1009,GROW - Commercial & Property,Planned Maintenance,20006,Repairs Maintenance & Alts,5005,wc`s   - Monthly Water Monitoring 12 mths,18/11/2022,0173959,65.00,Revenue,Maxigiene Environmental Services Ltd,67160,,
Chorley Borough Council,http://statistics.data.gov.uk/id/local-authority/30UE,Central Support Services,1009,GROW - Commercial & Property,Planned Maintenance,20006,Repairs Maintenance & Alts,5005,sports pitches and pavilions   - Monthly Water Monitoring 12 mths,18/11/2022,0173959,72.08,Revenue,Maxigiene Environmental Services Ltd,67160,,
Chorley Borough Council,http://statistics.data.gov.uk/id/local-authority/30UE,Central Support Services,1009,GROW - Commercial & Property,Planned Maintenance,20006,Repairs Maintenance & Alts,5005,Bengal St  - Monthly Water Monitoring 12 mths,18/11/2022,0173959,25.00,Revenue,Maxigiene Environmental Services Ltd,67160,,
Chorley Borough Council,http://statistics.data.gov.uk/id/local-authority/30UE,Central Support Services,1009,GROW - Commercial & Property,Planned Maintenance,20006,Repairs Maintenance & Alts,5005,chorley cemetery  - Monthly Water Monitoring 12 mths,18/11/2022,0173959,20.00,Revenue,Maxigiene Environmental Services Ltd,67160,,
Chorley Borough Council,http://statistics.data.gov.uk/id/local-authority/30UE,Community Development,1097,GROW - Commercial & Property,Planned Maintenance,20006,Repairs Maintenance & Alts,5005,CAB  35-39 Market St  - Monthly Water Monitoring 12 mths,18/11/2022,0173959,20.00,Revenue,Maxigiene Environmental Services Ltd,67160,,
Chorley Borough Council,http://statistics.data.gov.uk/id/local-authority/30UE,Business Support,1095,GROW - Commercial & Property,Planned Maintenance,20006,Repairs Maintenance & Alts,5005,MW   Market Walk  - Monthly Water Monitoring 12 mths,18/11/2022,0173959,20.00,Revenue,Maxigiene Environmental Services Ltd,67160,,
Chorley Borough Council,http://statistics.data.gov.uk/id/local-authority/30UE,Central Support Services,1009,GROW - Commercial & Property,Planned Maintenance,20006,Repairs Maintenance & Alts,5005,Cotswold  - Monthly Water Monitoring 12 mths,18/11/2022,0173959,20.00,Revenue,Maxigiene Environmental Services Ltd,67160,,
Chorley Borough Council,http://statistics.data.gov.uk/id/local-authority/30UE,Central Support Services,1009,GROW - Commercial & Property,Planned Maintenance,20006,Repairs Maintenance & Alts,5005,Market  - Monthly Water Monitoring 12 mths,18/11/2022,0173959,20.00,Revenue,Maxigiene Environmental Services Ltd,67160,,
Chorley Borough Council,http://statistics.data.gov.uk/id/local-authority/30UE,Central Support Services,1009,GROW - Commercial & Property,Planned Maintenance,20006,Repairs Maintenance & Alts,5005,Primrose  - Monthly Water Monitoring 12 mths,18/11/2022,0173959,30.00,Revenue,Maxigiene Environmental Services Ltd,67160,,
Chorley Borough Council,http://statistics.data.gov.uk/id/local-authority/30UE,Business Support,1095,GROW - Commercial & Property,Planned Maintenance,20006,Repairs Maintenance & Alts,5005,Strawberry Fields  - Monthly Water Monitoring 12 mths,18/11/2022,0173959,30.00,Revenue,Maxigiene Environmental Services Ltd,67160,,
Chorley Borough Council,http://statistics.data.gov.uk/id/local-authority/30UE,Central Support Services,1009,GROW - Commercial & Property,Planned Maintenance,20006,Repairs Maintenance & Alts,5005,Town Hall  - Monthly Water Monitoring 12 mths,18/11/2022,0173959,25.00,Revenue,Maxigiene Environmental Services Ltd,67160,,
Chorley Borough Council,http://statistics.data.gov.uk/id/local-authority/30UE,Central Support Services,1009,GROW - Commercial & Property,Planned Maintenance,20006,Repairs Maintenance & Alts,5005,Union St  - Monthly Water Monitoring 12 mths,18/11/2022,0173959,25.00,Revenue,Maxigiene Environmental Services Ltd,67160,,
Chorley Borough Council,http://statistics.data.gov.uk/id/local-authority/30UE,Central Support Services,1009,GROW - Commercial & Property,Planned Maintenance,20006,Repairs Maintenance & Alts,5005,Westway  - Monthly Water Monitoring 12 mths,18/11/2022,0173959,30.00,Revenue,Maxigiene Environmental Services Ltd,67160,,
Chorley Borough Council,http://statistics.data.gov.uk/id/local-authority/30UE,Central Support Services,1009,GOVN - Policy & Governance,IT Software - Annual Licences,40101,Communication and Computing,5028,SIN161034  - MHR cancelled consultancy day fee.,18/11/2022,0173244,270.00,Revenue,MHR International UK Ltd,84982,,
Chorley Borough Council,http://statistics.data.gov.uk/id/local-authority/30UE,Central Support Services,1009,GROW - Commercial & Property,General Repairs - Reactive,20004,Repairs Maintenance & Alts,5005,housing - Drainage Reactive Repairs,04/11/2022,0173496,280.00,Revenue,Michael Roe,78294,,
Chorley Borough Council,http://statistics.data.gov.uk/id/local-authority/30UE,Culture & Heritage,1036,GOVN - Policy & Governance,Lifelong Learning Activities,40194,Miscellaneous Expenses,5034,Punch and Judy Show,18/11/2022,0169555,250.00,Revenue,Michael Wray,78165,,
Chorley Borough Council,http://statistics.data.gov.uk/id/local-authority/30UE,Democratic Represent and  Mgnt,1007,GOVN - Policy & Governance,Members Hospitality,40122,Expenses,5030,Catering for Member Training Session in the Lancastrian at the Town Hall on Thursday 29th September 2022. Delivery at 5pm. 37 x regular boxes 10 x ve,25/11/2022,0174028,300.00,Revenue,Mike Bryan,77185,,
Chorley Borough Council,http://statistics.data.gov.uk/id/local-authority/30UE,Capital,Capital,EARL - Communities,Grants,03002,Capital Expenditure,Capital,22/00004/CAG,18/11/2022,0173813,"6,170.20",Capital,Mint Northwest Ltd,65607,,
Chorley Borough Council,http://statistics.data.gov.uk/id/local-authority/30UE,Capital,Capital,EARL - Communities,Grants,03002,Capital Expenditure,Capital,,04/11/2022,0173548,"2,330.00",Capital,Mobility Care Services,70841,,
Chorley Borough Council,http://statistics.data.gov.uk/id/local-authority/30UE,Central Support Services,1009,CUST - Customer & Digital,Computer Equipment - Security,40106,Communication and Computing,5028,Kingston Technology DataTraveler Exodia USB flash drive 64 GB USB Type-A 3.2 Gen 1 (3.1 Gen) Black DTX/64GB 40 MXLY2ZM 40 Apple Lightning to USB Cabl,11/11/2022,0173415,739.90,Revenue,myPremier,84029,,
Chorley Borough Council,http://statistics.data.gov.uk/id/local-authority/30UE,Central Support Services,1009,CUST - Customer & Digital,Computer Equipment - Security,40106,Communication and Computing,5028,Kingston Technology DataTraveler Exodia USB flash drive 64 GB USB Type-A 3.2 Gen 1 (3.1 Gen) Black DTX/64GB 40MXLY2ZM 40 Apple Lightning to USB Cable,11/11/2022,0173632,348.40,Revenue,myPremier,84029,,
Chorley Borough Council,http://statistics.data.gov.uk/id/local-authority/30UE,Tourism,1039,GOVN - Policy & Governance,Promotional Expenses,40159,Miscellaneous Expenses,5034,Title: 12PP A5 SWEET PEA BOOKLET Size: A5. Extent Text: 12 Pages. Artwork: From Press-Ready PDF Supplied with all ticks and bleeds.. Proofs: PDF proo,18/11/2022,0173764,393.00,Revenue,N B Colour Print Ltd,17917,,
Chorley Borough Council,http://statistics.data.gov.uk/id/local-authority/30UE,Development Control,1091,PLAN - Planning & Development,Statutory Notices,40160,Miscellaneous Expenses,5034,Planning Public Notices to appear in the Chorley Guardian April 2022 to March 2023,11/11/2022,0170173,608.40,Revenue,National World Publishing Limited,20072,,
Chorley Borough Council,http://statistics.data.gov.uk/id/local-authority/30UE,Development Control,1091,PLAN - Planning & Development,Statutory Notices,40160,Miscellaneous Expenses,5034,Planning Public Notices to appear in the Chorley Guardian April 2022 to March 2023,11/11/2022,0170946,507.00,Revenue,National World Publishing Limited,20072,,
Chorley Borough Council,http://statistics.data.gov.uk/id/local-authority/30UE,Development Control,1091,PLAN - Planning & Development,Statutory Notices,40160,Miscellaneous Expenses,5034,Planning Public Notices to appear in the Chorley Guardian April 2022 to March 2023,11/11/2022,0173370,540.80,Revenue,National World Publishing Limited,20072,,
Chorley Borough Council,http://statistics.data.gov.uk/id/local-authority/30UE,Central Support Services,1009,GOVN - Policy & Governance,Misc Expenses,40200,Miscellaneous Expenses,5034,Digital inclusion Half Page Chorley Guardian/Lancs Post Ad,18/11/2022,0173734,348.84,Revenue,National World Publishing Limited,20072,,
Chorley Borough Council,http://statistics.data.gov.uk/id/local-authority/30UE,Business Support,1095,GROW - Commercial & Property,Security Service,40062,Services,5027,To provide evening Site Security Services at Market Walk Shopping Centre from 5pm until midnight 7 days a week. Hourly rate  From 1st April 2022 to E,04/11/2022,0173115,438.75,Revenue,New Concept Security NW Ltd T/A New Concept Goup,80488,,
Chorley Borough Council,http://statistics.data.gov.uk/id/local-authority/30UE,Service Management & Support,1009,CUST - Customer & Digital,Supplies-Grounds Maintenance,40025,"Equipment, Furniture & Materia",5023,Nomix Conqueror 5litres x 20 carriage charge,25/11/2022,0172738,"1,583.00",Revenue,Nomix Enviro Ltd,82223,,
Chorley Borough Council,http://statistics.data.gov.uk/id/local-authority/30UE,Central Support Services,1009,GOVN - Policy & Governance,Publicity - Advertising,40157,Miscellaneous Expenses,5034,Film Production Event Coverage - Astley Illuminated Invoice No: CC006,11/11/2022,0173760,650.00,Revenue,North Film Studios Limited,85582,,
Chorley Borough Council,http://statistics.data.gov.uk/id/local-authority/30UE,Business Support,1095,GROW - Commercial & Property,Contract Catering,40038,Catering,5024,TO REPLACE CANCELLED PRD067752 4 x NWT808 Clipper Fairtrade Instant Hot Chocolate Sticks ,04/11/2022,0173552,91.96,Revenue,North West Tea FM Solutions,78255,,
Chorley Borough Council,http://statistics.data.gov.uk/id/local-authority/30UE,Business Support,1095,GROW - Commercial & Property,Refreshments,40036,Catering,5024,20 x NWT084 Clipper Fairtrade Medium Roast Organic Arabica Coffe 500g single unit,04/11/2022,0173552,355.00,Revenue,North West Tea FM Solutions,78255,,
Chorley Borough Council,http://statistics.data.gov.uk/id/local-authority/30UE,Business Support,1095,GROW - Commercial & Property,Contract Catering,40038,Catering,5024,1 x NWT148 Crawfords Mini packs,04/11/2022,0173552,13.99,Revenue,North West Tea FM Solutions,78255,,
Chorley Borough Council,http://statistics.data.gov.uk/id/local-authority/30UE,Tourism,1039,GOVN - Policy & Governance,Tools & Equipment - Hire,40004,"Equipment, Furniture & Materia",5023,"Delivery, hire and pick up for: 8 x Individual Toilets 2 x Disabled Access 1 x Disabled Access with Baby Changing Delivery to Astley Park 3pm on Frid",11/11/2022,0173421,890.00,Revenue,Northwest Portables,74432,,
Chorley Borough Council,http://statistics.data.gov.uk/id/local-authority/30UE,Central Support Services,1009,GROW - Commercial & Property,Electricity,20013,Energy Costs,5006,01 July 2022 - 30 Sep 2022,11/11/2022,0173257,"1,934.47",Revenue,Npower Commercial Gas,16814,,
Chorley Borough Council,http://statistics.data.gov.uk/id/local-authority/30UE,Open Spaces,1038,GROW - Commercial & Property,Electricity,20013,Energy Costs,5006,Astley hall coach house,04/11/2022,0173578,"2,345.57",Revenue,Npower Commercial Gas,16814,,
Chorley Borough Council,http://statistics.data.gov.uk/id/local-authority/30UE,Homelessness,1075,GROW - Commercial & Property,Electricity,20013,Energy Costs,5006,Cotswold house communal rooms,04/11/2022,0173581,"1,018.67",Revenue,Npower Commercial Gas,16814,,
Chorley Borough Council,http://statistics.data.gov.uk/id/local-authority/30UE,Open Spaces,1038,GROW - Commercial & Property,Electricity,20013,Energy Costs,5006,Astley park changing rooms,04/11/2022,0173582,468.63,Revenue,Npower Commercial Gas,16814,,
Chorley Borough Council,http://statistics.data.gov.uk/id/local-authority/30UE,Parking Services,1066,GROW - Commercial & Property,Electricity,20013,Energy Costs,5006,Friday Street,04/11/2022,0173583,603.91,Revenue,Npower Commercial Gas,16814,,
Chorley Borough Council,http://statistics.data.gov.uk/id/local-authority/30UE,Central Support Services,1009,GROW - Commercial & Property,Electricity,20013,Energy Costs,5006,"Civic offices, union street",04/11/2022,0173586,"6,914.47",Revenue,Npower Commercial Gas,16814,,
Chorley Borough Council,http://statistics.data.gov.uk/id/local-authority/30UE,Central Support Services,1009,GROW - Commercial & Property,Electricity,20013,Energy Costs,5006,Town Hall,04/11/2022,0173587,"5,010.00",Revenue,Npower Commercial Gas,16814,,
Chorley Borough Council,http://statistics.data.gov.uk/id/local-authority/30UE,Recreation & Sport,1037,GROW - Commercial & Property,Electricity,20013,Energy Costs,5006,Clayton green sport ctr,04/11/2022,0173588,"2,247.66",Revenue,Npower Commercial Gas,16814,,
Chorley Borough Council,http://statistics.data.gov.uk/id/local-authority/30UE,Service Management Support,1009,GROW - Commercial & Property,Electricity,20013,Energy Costs,5006,Astley Farm,04/11/2022,0173590,493.20,Revenue,Npower Commercial Gas,16814,,
Chorley Borough Council,http://statistics.data.gov.uk/id/local-authority/30UE,Homelessness,1075,GROW - Commercial & Property,Electricity,20013,Energy Costs,5006,cotswold house two storey wing,04/11/2022,0173597,525.82,Revenue,Npower Commercial Gas,16814,,
Chorley Borough Council,http://statistics.data.gov.uk/id/local-authority/30UE,Recreation & Sport,1037,GROW - Commercial & Property,Electricity,20013,Energy Costs,5006,Main panel Tatton gardens,04/11/2022,0173598,904.39,Revenue,Npower Commercial Gas,16814,,
Chorley Borough Council,http://statistics.data.gov.uk/id/local-authority/30UE,Parking Services,1066,GROW - Commercial & Property,Electricity,20013,Energy Costs,5006,Car park union street,04/11/2022,0173604,"2,179.45",Revenue,Npower Commercial Gas,16814,,
Chorley Borough Council,http://statistics.data.gov.uk/id/local-authority/30UE,Recreation & Sport,1037,GROW - Commercial & Property,Electricity,20013,Energy Costs,5006,ADDRESS REDACTED,04/11/2022,0173613,300.35,Revenue,Npower Commercial Gas,16814,,
Chorley Borough Council,http://statistics.data.gov.uk/id/local-authority/30UE,Business Support,1095,GROW - Commercial & Property,Electricity,20013,Energy Costs,5006,Landlords communal area market walk,04/11/2022,0173617,"1,076.63",Revenue,Npower Commercial Gas,16814,,
Chorley Borough Council,http://statistics.data.gov.uk/id/local-authority/30UE,Parking Services,1066,GROW - Commercial & Property,Electricity,20013,Energy Costs,5006,Oak house car park,04/11/2022,0173619,517.50,Revenue,Npower Commercial Gas,16814,,
Chorley Borough Council,http://statistics.data.gov.uk/id/local-authority/30UE,Parking Services,1066,GROW - Commercial & Property,External Contractors,50008,Private Contractors,5042,Provision of Off Street Car Park Cash Collection & Enforcement � final year of contract 01.11.21 to 31.10.22,11/11/2022,0172992,"5,040.09",Revenue,NSL Limited,67253,,
Chorley Borough Council,http://statistics.data.gov.uk/id/local-authority/30UE,Parking Services,1066,GROW - Commercial & Property,External Contractors,50008,Private Contractors,5042,Provision of Off Street Car Park Cash Collection & Enforcement � final year of contract 01.11.21 to 31.10.22,11/11/2022,0173756,"4,232.46",Revenue,NSL Limited,67253,,
Chorley Borough Council,http://statistics.data.gov.uk/id/local-authority/30UE,Service Management & Support,1009,CUST - Customer & Digital,Supplies-Grounds Maintenance,40025,"Equipment, Furniture & Materia",5023,Sand & paint memorial benches in Chorley Cemetery,25/11/2022,0172866,305.00,Revenue,Nuchoice Limited,75454,,
Chorley Borough Council,http://statistics.data.gov.uk/id/local-authority/30UE,Service Management & Support,1009,CUST - Customer & Digital,Supplies-Grounds Maintenance,40025,"Equipment, Furniture & Materia",5023,"Sand, repair & paint memorial benches in Adlington Cemetery",11/11/2022,0172867,420.00,Revenue,Nuchoice Limited,75454,,
Chorley Borough Council,http://statistics.data.gov.uk/id/local-authority/30UE,Central Support Services,1009,CUST - Customer & Digital,Tools & Equipment - Maintenance,40005,"Equipment, Furniture & Materia",5023,110x220 Gummed Wallet White 90gsm Std Opaque Printed 1/0,25/11/2022,0174159,350.84,Revenue,Opal Envelopes Ltd,19356,,
Chorley Borough Council,http://statistics.data.gov.uk/id/local-authority/30UE,Culture & Heritage,1036,GOVN - Policy & Governance,Professional Fees,14011,Direct Employee Expenses,5001,Professional Performance Fees - Last Night of the Proms performed 03/09/2022,04/11/2022,0173551,"3,049.20",Revenue,Outreach Opera,83895,,
Chorley Borough Council,http://statistics.data.gov.uk/id/local-authority/30UE,Democratic Represent and  Mgnt,1007,GOVN - Policy & Governance,Grants To Other Organisations,40127,Grants and Subscriptions,5031,Cllr Community Grant,25/11/2022,0174120,250.00,Revenue,P C C of St John the Evangelist,21465,,
Chorley Borough Council,http://statistics.data.gov.uk/id/local-authority/30UE,Service Management & Support,1009,CUST - Customer & Digital,Supplies - Workshop,40246,"Equipment, Furniture & Materia",5023,As per invoice number 21350,25/11/2022,0173843,280.40,Revenue,P D M Components,19204,,
Chorley Borough Council,http://statistics.data.gov.uk/id/local-authority/30UE,Parking Services,1066,GROW - Commercial & Property,Printing,40043,"Printing, Stationery & General",5026,"Please supply: stock stelio stub adhesive tickets (2-part/stub) for Portland Street Car Park Qty: 30,000 per 1000 Delivery",18/11/2022,0173826,344.50,Revenue,Paperwork (UK) Limited,18296,,
Chorley Borough Council,http://statistics.data.gov.uk/id/local-authority/30UE,Economic Development,1096,GROW - Commercial & Property,Cleaning Materials,40019,"Equipment, Furniture & Materia",5023,Please supply cleaning products as per email to Chorley markets,04/11/2022,0173084,293.98,Revenue,Pattersons Holdings (Bristol),77537,,
Chorley Borough Council,http://statistics.data.gov.uk/id/local-authority/30UE,Business Support,1095,GROW - Commercial & Property,Cleaning Materials,40019,"Equipment, Furniture & Materia",5023,AF113 BLUE ROLL ,04/11/2022,0173555,15.54,Revenue,Pattersons Holdings (Bristol),77537,,
Chorley Borough Council,http://statistics.data.gov.uk/id/local-authority/30UE,Business Support,1095,GROW - Commercial & Property,Cleaning Materials,40019,"Equipment, Furniture & Materia",5023,BA010-5 MULTI PURPOSE CLEANER X 1,04/11/2022,0173555,7.87,Revenue,Pattersons Holdings (Bristol),77537,,
Chorley Borough Council,http://statistics.data.gov.uk/id/local-authority/30UE,Business Support,1095,GROW - Commercial & Property,Cleaning Materials,40019,"Equipment, Furniture & Materia",5023,BB031-1 WASHING UP LIQ X 5 ,04/11/2022,0173555,11.40,Revenue,Pattersons Holdings (Bristol),77537,,
Chorley Borough Council,http://statistics.data.gov.uk/id/local-authority/30UE,Business Support,1095,GROW - Commercial & Property,Cleaning Materials,40019,"Equipment, Furniture & Materia",5023,PX-00012 FINISH DISHWASHER CLEANER X 5,04/11/2022,0173555,10.29,Revenue,Pattersons Holdings (Bristol),77537,,
Chorley Borough Council,http://statistics.data.gov.uk/id/local-authority/30UE,Business Support,1095,GROW - Commercial & Property,Cleaning Materials,40019,"Equipment, Furniture & Materia",5023,BC041-1 TOILET CLEANER X 5 BC060-1 TOILET CLEANER X 6,04/11/2022,0173555,13.68,Revenue,Pattersons Holdings (Bristol),77537,,
Chorley Borough Council,http://statistics.data.gov.uk/id/local-authority/30UE,Business Support,1095,GROW - Commercial & Property,Cleaning Materials,40019,"Equipment, Furniture & Materia",5023,BK081-50 FOAMWASH SOAP X 1 BOX,04/11/2022,0173555,40.50,Revenue,Pattersons Holdings (Bristol),77537,,
Chorley Borough Council,http://statistics.data.gov.uk/id/local-authority/30UE,Business Support,1095,GROW - Commercial & Property,Cleaning Materials,40019,"Equipment, Furniture & Materia",5023,CG106-B1 BLUE CLOTHS X 10 ,04/11/2022,0173555,3.10,Revenue,Pattersons Holdings (Bristol),77537,,
Chorley Borough Council,http://statistics.data.gov.uk/id/local-authority/30UE,Business Support,1095,GROW - Commercial & Property,Cleaning Materials,40019,"Equipment, Furniture & Materia",5023,CM180 BLACK BIN LINERS 2 ,04/11/2022,0173555,25.14,Revenue,Pattersons Holdings (Bristol),77537,,
Chorley Borough Council,http://statistics.data.gov.uk/id/local-authority/30UE,Business Support,1095,GROW - Commercial & Property,Cleaning Materials,40019,"Equipment, Furniture & Materia",5023,DG150-L BLUE GLOVES,04/11/2022,0173555,9.25,Revenue,Pattersons Holdings (Bristol),77537,,
Chorley Borough Council,http://statistics.data.gov.uk/id/local-authority/30UE,Business Support,1095,GROW - Commercial & Property,Cleaning Materials,40019,"Equipment, Furniture & Materia",5023,HA0016-16 MOP HEADS X 2,04/11/2022,0173555,2.48,Revenue,Pattersons Holdings (Bristol),77537,,
Chorley Borough Council,http://statistics.data.gov.uk/id/local-authority/30UE,Business Support,1095,GROW - Commercial & Property,Cleaning Materials,40019,"Equipment, Furniture & Materia",5023,AA301  X 8,11/11/2022,0173746,280.96,Revenue,Pattersons Holdings (Bristol),77537,,
Chorley Borough Council,http://statistics.data.gov.uk/id/local-authority/30UE,Tourism,1039,GOVN - Policy & Governance,Professional Fees,40063,Services,5027,Photography at events 2022,04/11/2022,0173113,250.00,Revenue,Paul Heyes Photographer,20909,,
Chorley Borough Council,http://statistics.data.gov.uk/id/local-authority/30UE,Tourism,1039,GOVN - Policy & Governance,Tools & Equipment - Hire,40004,"Equipment, Furniture & Materia",5023,Supply of PA for Bonfire and Fireworks event,18/11/2022,0173904,"2,700.00",Revenue,Paul K Sound & Vision,16607,,
Chorley Borough Council,http://statistics.data.gov.uk/id/local-authority/30UE,Economic Development,1096,GROW - Commercial & Property,Christmas Lights,40179,Miscellaneous Expenses,5034,2 x stages for reindeer xmas lights - Portland Sreet Carpark.,18/11/2022,0173914,"1,566.67",Revenue,Paul K Sound & Vision,16607,,
Chorley Borough Council,http://statistics.data.gov.uk/id/local-authority/30UE,Economic Development,1096,GROW - Commercial & Property,Christmas Lights,40179,Miscellaneous Expenses,5034,"1 x stage for Xmas Cone tree, All Seasons Leisure Centre",18/11/2022,0173914,783.33,Revenue,Paul K Sound & Vision,16607,,
Chorley Borough Council,http://statistics.data.gov.uk/id/local-authority/30UE,Central Support Services,1009,GOVN - Policy & Governance,HR Recruitment Expenses,15200,Indirect Employee Expenses,5002,DBS checks for staff - Invoice No 360445,18/11/2022,0173710,398.00,Revenue,Personnel Checks Ltd,81534,,
Chorley Borough Council,http://statistics.data.gov.uk/id/local-authority/30UE,Central Support Services,1009,GOVN - Policy & Governance,HR Recruitment Expenses,15200,Indirect Employee Expenses,5002,,18/11/2022,0173710,208.30,Revenue,Personnel Checks Ltd,81534,,
Chorley Borough Council,http://statistics.data.gov.uk/id/local-authority/30UE,Central Support Services,1009,GOVN - Policy & Governance,HR Recruitment Expenses,15200,Indirect Employee Expenses,5002,,18/11/2022,0173710,17.49,Revenue,Personnel Checks Ltd,81534,,
Chorley Borough Council,http://statistics.data.gov.uk/id/local-authority/30UE,Central Support Services,1009,CUST - Customer & Digital,IT Software - Annual Licences,40101,Communication and Computing,5028,Veeam Backup for Microsoft Office 365 - 1 Year - Renewal Subscription - Upfront Billing & 129 Production - 24/7 Support - Public Sector - Licence,18/11/2022,0171188,"1,629.27",Revenue,Phoenix Software Ltd,17046,,
Chorley Borough Council,http://statistics.data.gov.uk/id/local-authority/30UE,Homelessness,1075,EARL - Communities,Service Fees,40056,Services,5027,Payment to clear outstanding court costs for NAME REDACTED in order to proceed with property offer (Ref:  27018218) as agreed with NAME REDACTED ,04/11/2022,0173636,446.00,Revenue,Places For People,22248,,
Chorley Borough Council,http://statistics.data.gov.uk/id/local-authority/30UE,Development Control,1091,PLAN - Planning & Development,Professional Fees,40063,Services,5027,Planning Enforcement Services April 2022 to March 2023,25/11/2022,0173531,826.50,Revenue,Planning and PACE Solutions Ltd,82083,,
Chorley Borough Council,http://statistics.data.gov.uk/id/local-authority/30UE,Development Control,1091,PLAN - Planning & Development,Professional Fees,40063,Services,5027,Planning Enforcement Services April 2021 to March 2022,25/11/2022,0173560,"1,121.00",Revenue,Planning and PACE Solutions Ltd,82083,,
Chorley Borough Council,http://statistics.data.gov.uk/id/local-authority/30UE,Development Control,1091,PLAN - Planning & Development,Professional Fees,40063,Services,5027,Planning Enforcement Services April 2021 to March 2022,25/11/2022,0173561,"1,596.00",Revenue,Planning and PACE Solutions Ltd,82083,,
Chorley Borough Council,http://statistics.data.gov.uk/id/local-authority/30UE,Development Control,1091,PLAN - Planning & Development,Professional Fees,40063,Services,5027,Planning Enforcement Services April 2021 to March 2022,25/11/2022,0173748,"1,425.00",Revenue,Planning and PACE Solutions Ltd,82083,,
Chorley Borough Council,http://statistics.data.gov.uk/id/local-authority/30UE,Development Control,1091,PLAN - Planning & Development,Professional Fees,40063,Services,5027,,25/11/2022,0173748,6.85,Revenue,Planning and PACE Solutions Ltd,82083,,
Chorley Borough Council,http://statistics.data.gov.uk/id/local-authority/30UE,Central Support Services,1009,GROW - Commercial & Property,General Repairs - Reactive,20004,Repairs Maintenance & Alts,5005,"All Seasons QU-1564 Supply of works to investigate leak in `bubble pool`, including: -Dye test -Pressure test",25/11/2022,0174074,"1,500.00",Revenue,Pool Technical Services Ltd,81000,,
Chorley Borough Council,http://statistics.data.gov.uk/id/local-authority/30UE,Culture & Heritage,1036,GOVN - Policy & Governance,Other Licence Fees,40231,Miscellaneous Expenses,5034,Astley Estate PPL/PRS. Licence account 01737336; Invoice no SIN2111319 Customer Account CUS-01357889 PRS,25/11/2022,0174083,554.41,Revenue,PPL PRS Ltd,77455,,
Chorley Borough Council,http://statistics.data.gov.uk/id/local-authority/30UE,Elections,1012,GOVN - Policy & Governance,Printing,40043,"Printing, Stationery & General",5026,"Annual Canvass 2022 - (as per quote 9598) 40,000 CCA forns - A4 printed double sided 16000 CCB forms - A4 printed double sided 8000 Canvass forms - A",04/11/2022,0173481,"1,690.59",Revenue,Print Image Network,21171,,
Chorley Borough Council,http://statistics.data.gov.uk/id/local-authority/30UE,Homelessness,1075,EARL - Communities,Service Fees,40056,Services,5027,Hotel stay NAME REDACTED - Purple roomz 27/10 - 02/11,11/11/2022,0173657,357.00,Revenue,Purple Roomz,84223,,
Chorley Borough Council,http://statistics.data.gov.uk/id/local-authority/30UE,Culture & Heritage,1036,GOVN - Policy & Governance,Professional Fees,14011,Direct Employee Expenses,5001,Professional Fees for Peter Rabbit Performance - Astley Hall Walled Garden 21/08/22,18/11/2022,0173509,"1,680.00",Revenue,Quantum Theatre,21420,,
Chorley Borough Council,http://statistics.data.gov.uk/id/local-authority/30UE,Regulatory Services,1048,PLAN - Planning & Development,Taxi Testing & Vehicle Safety Report,40234,Services,5027,taxi tests,11/11/2022,0173634,453.95,Revenue,R.C.J Motors,63625,,
Chorley Borough Council,http://statistics.data.gov.uk/id/local-authority/30UE,Central Support Services,1009,GROW - Commercial & Property,Professional Fees,40063,Services,5027,Extended QS / PM fee reflecting extended programme,18/11/2022,0170061,"2,380.00",Revenue,Rider Levett Bucknall,67527,,
Chorley Borough Council,http://statistics.data.gov.uk/id/local-authority/30UE,Central Support Services,1009,CUST - Customer & Digital,General Repairs - Reactive,20004,Repairs Maintenance & Alts,5005,Supply 40m2 Perennial Wildflower turf. Deliver to Bengal St,25/11/2022,0173420,848.00,Revenue,Rigby Taylor Ltd,16299,,
Chorley Borough Council,http://statistics.data.gov.uk/id/local-authority/30UE,Economic Development,1096,GROW - Commercial & Property,Professional Fees,40063,Services,5027,Re Internal & External repainting of Chorley Market Armstead trade smooth masonry paint Ral 7016 - 5ltr Armstead trade smooth masonry paint - white -,04/11/2022,0173238,318.90,Revenue,RJ Clarke Painting Contractor Limited,80959,,
Chorley Borough Council,http://statistics.data.gov.uk/id/local-authority/30UE,Capital,Capital,GROW - Commercial & Property,Main Contractor,03007,Capital Expenditure,Capital,Delivery of the Tatton regeneration scheme All in accordance with the executed NEC Engineering & Construct Contract,25/11/2022,0173913,"467,973.80",Capital,Robertson CE Limited,81176,,
Chorley Borough Council,http://statistics.data.gov.uk/id/local-authority/30UE,Capital,Capital,GROW - Commercial & Property,Main Contractor,03007,Capital Expenditure,Capital,CL2 monitor Hire at All Seasons Leisure Centre Chorley x10 Weeks 22/07/22Email Quote NAME REDACTED /NAME REDACTED  06/09/22,25/11/2022,0173229,720.00,Capital,Safety Gas Detection Ltd,85638,,
Chorley Borough Council,http://statistics.data.gov.uk/id/local-authority/30UE,Tourism,1039,GOVN - Policy & Governance,Professional Fees,40063,Services,5027,Performance at Bonfire & Fireworks event,11/11/2022,0173639,300.00,Revenue,Sambafriq,21441,,
Chorley Borough Council,http://statistics.data.gov.uk/id/local-authority/30UE,Central Support Services,1009,GOVN - Policy & Governance,HR Approved Occ Health Fees,15201,Indirect Employee Expenses,5002,Counselling sessions for staff in September 2022,11/11/2022,0173713,250.00,Revenue,Sarah Walsh,78412,,
Chorley Borough Council,http://statistics.data.gov.uk/id/local-authority/30UE,Homelessness,1075,GROW - Commercial & Property,External Contractor,40198,Miscellaneous Expenses,5034,For Security services provided at Cotswold House,18/11/2022,0173664,"7,406.60",Revenue,Sector Security Services,19269,,
Chorley Borough Council,http://statistics.data.gov.uk/id/local-authority/30UE,Business Support,1095,GROW - Commercial & Property,External Contractor,40198,Miscellaneous Expenses,5034,dale use the grn against inv 139578 in error,18/11/2022,0173665,"7,278.91",Revenue,Sector Security Services,19269,,
Chorley Borough Council,http://statistics.data.gov.uk/id/local-authority/30UE,Homelessness,1075,GROW - Commercial & Property,External Contractor,40198,Miscellaneous Expenses,5034,For Security services provided at Cotswold House,11/11/2022,0173777,396.98,Revenue,Sector Security Services,19269,,
Chorley Borough Council,http://statistics.data.gov.uk/id/local-authority/30UE,Business Support,1095,GROW - Commercial & Property,External Contractor,40198,Miscellaneous Expenses,5034,For Security services provided at Primrose Gardens,11/11/2022,0173778,396.98,Revenue,Sector Security Services,19269,,
Chorley Borough Council,http://statistics.data.gov.uk/id/local-authority/30UE,Business Support,1095,GROW - Commercial & Property,Security Service,40062,Services,5027,"To provide evening Site Security Services at Market Walk Shopping Centre from 5pm until midnight, 7 days a week. From 1st October 2022 to 30th Septem",18/11/2022,0173754,"2,669.10",Revenue,Secure FM Ltd,86928,,
Chorley Borough Council,http://statistics.data.gov.uk/id/local-authority/30UE,Capital,Capital,GROW - Commercial & Property,Main Contractor,03007,Capital Expenditure,Capital,Chorley Leisure Centres Style No 307ZDA140 4   x   EV4000  Evacuation Chairs To be delivered to All Seasons Leisure Centre Opening times for delivery,11/11/2022,0168436,"2,606.95",Capital,Seton Ltd,16674,,
Chorley Borough Council,http://statistics.data.gov.uk/id/local-authority/30UE,Open Spaces,1038,CUST - Customer & Digital,Grounds Maintenance Contractor,20043,Grounds Maintenance Costs,5013,"Suppy and fit safety rail, Lodge Bank, Brinscall",25/11/2022,0173456,990.00,Revenue,SM Sheet Metal Ltd,21243,,
Chorley Borough Council,http://statistics.data.gov.uk/id/local-authority/30UE,Open Spaces,1038,CUST - Customer & Digital,Playground Equipment,40008,"Equipment, Furniture & Materia",5023,"Weld lugs onto swing frame, Lodge Bank, Brinscall",25/11/2022,0173457,320.00,Revenue,SM Sheet Metal Ltd,21243,,
Chorley Borough Council,http://statistics.data.gov.uk/id/local-authority/30UE,Central Support Services,1009,CUST - Customer & Digital,General Repairs - Reactive,20004,Repairs Maintenance & Alts,5005,Supply & fit safety rail at GP Whittle Surgery,25/11/2022,0173459,670.00,Revenue,SM Sheet Metal Ltd,21243,,
Chorley Borough Council,http://statistics.data.gov.uk/id/local-authority/30UE,Central Support Services,1009,GOVN - Policy & Governance,Lone Working System,40097,Communication and Computing,5028,Service Charges - Invoice 146154,11/11/2022,0173839,500.80,Revenue,SoloProtect Ltd,76206,,
Chorley Borough Council,http://statistics.data.gov.uk/id/local-authority/30UE,Central Support Services,1009,GOVN - Policy & Governance,Misc Expenses,40200,Miscellaneous Expenses,5034,2021/22 South Ribble Council Buckshaw Garden Waste Income collected by Chorley Council.,11/11/2022,0173450,"10,400.00",Revenue,South Ribble Borough Council,17889,,
Chorley Borough Council,http://statistics.data.gov.uk/id/local-authority/30UE,Business Support,1095,GROW - Commercial & Property,Cleaning Services,20033,Cleaning and Domestic Supplies,5012,To pressure wash areas as discussed with a flat surface cleaner: Blue area - (Poundland to Ladbrokes) 365m2 Dark yellow area - (Anytime fitness to Bo,04/11/2022,0173422,"3,112.50",Revenue,Sparkle Window Cleaning (Michael Jennings),77989,,
Chorley Borough Council,http://statistics.data.gov.uk/id/local-authority/30UE,Central Support Services,1009,GROW - Commercial & Property,Planned Maintenance,20006,Repairs Maintenance & Alts,5005,Union St External Window Cleaning as agreed with NAME REDACTED ,04/11/2022,0173447,296.00,Revenue,Sparkle Window Cleaning (Michael Jennings),77989,,
Chorley Borough Council,http://statistics.data.gov.uk/id/local-authority/30UE,Business Support,1095,GROW - Commercial & Property,Fixtures & Fittings - Repair/Mtnce,20028,Fixtures and Fittings,5010,Market Walk full canopy clean including green area on roof above boots and windows above canopy. (Including any vacant unit ground floor windows) Mar,04/11/2022,0173474,"4,590.00",Revenue,Sparkle Window Cleaning (Michael Jennings),77989,,
Chorley Borough Council,http://statistics.data.gov.uk/id/local-authority/30UE,Central Support Services,1009,EARL - Communities,Misc Expenses,40200,Miscellaneous Expenses,5034,2022-2023 tempo community currency (Time Credits) service,11/11/2022,0172893,"7,166.25",Revenue,Spice Innovations Ltd T/A Tempo Time Credits,61318,,
Chorley Borough Council,http://statistics.data.gov.uk/id/local-authority/30UE,Culture & Heritage,1036,GOVN - Policy & Governance,Exhibitions & Special Events,40158,Miscellaneous Expenses,5034,Park and Ride service provided to/from Chorley Town Centre and the Astley Illuminated event on 22 October 2022 5pm  - 9.30pm,18/11/2022,0173911,700.00,Revenue,Stagecoach Services Limited,18598,,
Chorley Borough Council,http://statistics.data.gov.uk/id/local-authority/30UE,Service Management & Support,1009,CUST - Customer & Digital,Diesel/Derv,30007,Direct Transport Costs,5016,As per chest procurement 7300 litres of road diesel,18/11/2022,0173311,"11,621.08",Revenue,Standard Fuel Oils,85167,,
Chorley Borough Council,http://statistics.data.gov.uk/id/local-authority/30UE,Central Support Services,1009,GROW - Commercial & Property,General Repairs - Reactive,20004,Repairs Maintenance & Alts,5005,"ADDRESS REDACTED, Flooding Issues, Chorley Arrange & carry out detailed site investigation, detailed design, liaison with occupier, preparation of dr",04/11/2022,0173640,473.99,Revenue,Street Civil Engineering Limited,76750,,
Chorley Borough Council,http://statistics.data.gov.uk/id/local-authority/30UE,Central Support Services,1009,GROW - Commercial & Property,General Repairs - Reactive,20004,Repairs Maintenance & Alts,5005,Engineering Services Quote 01 - 2022 Provision of agreed general engineering services 1st September 2022 to 31st March 2023,04/11/2022,0173641,"1,483.88",Revenue,Street Civil Engineering Limited,76750,,
Chorley Borough Council,http://statistics.data.gov.uk/id/local-authority/30UE,Central Support Services,1009,GROW - Commercial & Property,General Repairs - Reactive,20004,Repairs Maintenance & Alts,5005,"Engineering Services Quote 02 - 2022 Queens Road Car Park, Chorley Detailed design, liaison with stakeholders, preparation of drawings & contract doc",04/11/2022,0173642,"2,173.89",Revenue,Street Civil Engineering Limited,76750,,
Chorley Borough Council,http://statistics.data.gov.uk/id/local-authority/30UE,Central Support Services,1009,GROW - Commercial & Property,General Repairs - Reactive,20004,Repairs Maintenance & Alts,5005,"Engineering Services Quote 03 - 2022 War Memorial Wall, Astley Park, Chorley Arrange & carry out detailed site investigation, detailed design, liaiso",04/11/2022,0173643,667.09,Revenue,Street Civil Engineering Limited,76750,,
Chorley Borough Council,http://statistics.data.gov.uk/id/local-authority/30UE,Central Support Services,1009,GROW - Commercial & Property,General Repairs - Reactive,20004,Repairs Maintenance & Alts,5005,14989 Kitchen works at 2 woodchat,11/11/2022,0173298,369.10,Revenue,Stringfellow Bldg Cntrctrs Ltd,17893,,
Chorley Borough Council,http://statistics.data.gov.uk/id/local-authority/30UE,Capital,Capital,GROW - Commercial & Property,Main Contractor,03007,Capital Expenditure,Capital,Town Hall Server Room Works as per tender,11/11/2022,0173831,"7,400.00",Capital,Stringfellow Bldg Cntrctrs Ltd,17893,,
Chorley Borough Council,http://statistics.data.gov.uk/id/local-authority/30UE,Control Accounts,Control,GROW - Commercial & Property,Manual Control Account,00001,Balance Sheet,Balance,,11/11/2022,0173605,275.64,Revenue,Studio Stevo,86956,,
Chorley Borough Council,http://statistics.data.gov.uk/id/local-authority/30UE,Central Support Services,1009,CUST - Customer & Digital,CCTV Camera Maintenance,40007,"Equipment, Furniture & Materia",5023,Camera 39 PTZ Repair,11/11/2022,0170672,369.75,Revenue,Technology Solutions,72376,,
Chorley Borough Council,http://statistics.data.gov.uk/id/local-authority/30UE,Tourism,1039,GOVN - Policy & Governance,Other Contributions,40145,Grants and Subscriptions,5031,Flower Show Creche,18/11/2022,0173443,350.00,Revenue,The Astley Walled Gardeners,70095,,
Chorley Borough Council,http://statistics.data.gov.uk/id/local-authority/30UE,Tourism,1039,GOVN - Policy & Governance,Professional Fees,40063,Services,5027,Chorley Live 2022 - Creative Network,04/11/2022,0173441,"8,540.00",Revenue,The Creative Network,61874,,
Chorley Borough Council,http://statistics.data.gov.uk/id/local-authority/30UE,Capital,Capital,EARL - Communities,Grants,03002,Capital Expenditure,Capital,,04/11/2022,0173549,"1,925.00",Capital,The Excellent Ramp System Ltd,84866,,
Chorley Borough Council,http://statistics.data.gov.uk/id/local-authority/30UE,Business Support,1095,GROW - Commercial & Property,Security Service,40062,Services,5027,Security service at Strawberry Fields Digital Hub between April 2022 to end of September 2022,04/11/2022,0173013,"7,614.55",Revenue,The ExcluSec Group Ltd,78056,,
Chorley Borough Council,http://statistics.data.gov.uk/id/local-authority/30UE,Business Support,1095,GROW - Commercial & Property,Stationery,40050,"Printing, Stationery & General",5026,Eviction of travelers from Strawberry Fields,25/11/2022,0174175,"2,000.00",Revenue,The ExcluSec Group Ltd,78056,,
Chorley Borough Council,http://statistics.data.gov.uk/id/local-authority/30UE,Service Management & Support,1009,CUST - Customer & Digital,Tools & Equipment - Purchase,40003,"Equipment, Furniture & Materia",5023,30x LP1637 92cm (37``) LITTERPICKER PRO EXTRA,11/11/2022,0173505,434.70,Revenue,The Helping Hand Company,17779,,
Chorley Borough Council,http://statistics.data.gov.uk/id/local-authority/30UE,Tourism,1039,GOVN - Policy & Governance,Misc Expenses,40200,Miscellaneous Expenses,5034,CFS 2022 payment,18/11/2022,0170875,510.00,Revenue,The National Sweet Pea Society,71521,,
Chorley Borough Council,http://statistics.data.gov.uk/id/local-authority/30UE,Central Support Services,1009,GROW - Commercial & Property,Agency Staff,13000,Direct Employee Expenses,5001,Estate surveyor fees for NAME REDACTED ,04/11/2022,0173308,"1,693.80",Revenue,The Oyster Partnership Ltd,81409,,
Chorley Borough Council,http://statistics.data.gov.uk/id/local-authority/30UE,Central Support Services,1009,GROW - Commercial & Property,Agency Staff,13000,Direct Employee Expenses,5001,Estate surveyor fees for NAME REDACTED ,04/11/2022,0173388,"1,859.25",Revenue,The Oyster Partnership Ltd,81409,,
Chorley Borough Council,http://statistics.data.gov.uk/id/local-authority/30UE,Culture & Heritage,1036,GOVN - Policy & Governance,Souvenirs,40033,"Equipment, Furniture & Materia",5023,"Rapunzel Knitting Doll Set Item code:	222141		 Unit price:	  Qty in pack: 6 Packs required:	2	 Total:	  Let�s Look For Garden Birds Item code:	401584",18/11/2022,0170815,541.60,Revenue,Town Mills Craft Centre t/a House of Marbles,80858,,
Chorley Borough Council,http://statistics.data.gov.uk/id/local-authority/30UE,Culture & Heritage,1036,GOVN - Policy & Governance,Souvenirs,40033,"Equipment, Furniture & Materia",5023,Zero,18/11/2022,0170815,162.16,Revenue,Town Mills Craft Centre t/a House of Marbles,80858,,
Chorley Borough Council,http://statistics.data.gov.uk/id/local-authority/30UE,Service Management & Support,1009,CUST - Customer & Digital,Grounds Maintenance Contractor,20043,Grounds Maintenance Costs,5013,"Section felling of one Oak tree, ADDRESS REDACTED",11/11/2022,0173711,840.00,Revenue,Treescape North West Ltd,17688,,
Chorley Borough Council,http://statistics.data.gov.uk/id/local-authority/30UE,Service Management & Support,1009,CUST - Customer & Digital,Grounds Maintenance Contractor,20043,Grounds Maintenance Costs,5013,Tesco roundabout - Fell three trees and remove limb with bacterial canker.,11/11/2022,0173736,840.00,Revenue,Treescape North West Ltd,17688,,
Chorley Borough Council,http://statistics.data.gov.uk/id/local-authority/30UE,Service Management & Support,1009,CUST - Customer & Digital,Grounds Maintenance Contractor,20043,Grounds Maintenance Costs,5013,Fell 2 Willows near ADDRESS REDACTED,11/11/2022,0173737,840.00,Revenue,Treescape North West Ltd,17688,,
Chorley Borough Council,http://statistics.data.gov.uk/id/local-authority/30UE,Capital,Capital,GROW - Commercial & Property,Main Contractor,03007,Capital Expenditure,Capital,Queens Rd Car Park tree removal,18/11/2022,0173850,"1,450.00",Capital,Treescape North West Ltd,17688,,
Chorley Borough Council,http://statistics.data.gov.uk/id/local-authority/30UE,Service Management & Support,1009,CUST - Customer & Digital,Protective Clothing,40040,"Clothing, Uniforms and Laundry",5025,"Quantity x 8 Tudor Spring Steel Lawn Rake, 20 tines, 48`` ash handle- CONL/RAKE- each Quantity x 15 Tudor Garden Trowel, heavy-duty- CONH/THD Quantit",25/11/2022,0174081,303.59,Revenue,Tudor (UK) Limited t/a Tudor Environmental,78888,,
Chorley Borough Council,http://statistics.data.gov.uk/id/local-authority/30UE,Central Support Services,1009,GOVN - Policy & Governance,Misc Expenses,40200,Miscellaneous Expenses,5034,Staff Healthcare Scheme,11/11/2022,0173723,"1,449.00",Revenue,UK Healthcare (BDHSC),17241,,
Chorley Borough Council,http://statistics.data.gov.uk/id/local-authority/30UE,Tourism,1039,GOVN - Policy & Governance,Misc Expenses,40200,Miscellaneous Expenses,5034,Chorley Live 2022 - 7 & 8 October 2022 Stewards for venues Saturday - 7 stewards Sunday - 2 stewards,11/11/2022,0173833,"1,185.00",Revenue,UltraSec Security LTD,86918,,
Chorley Borough Council,http://statistics.data.gov.uk/id/local-authority/30UE,Central Support Services,1009,CUST - Customer & Digital,Telephones - Rentals,40083,Communication and Computing,5028,Astley Village Parish Council,18/11/2022,0173853,"2,641.75",Revenue,Virgin Media Payments Ltd,17632,,
Chorley Borough Council,http://statistics.data.gov.uk/id/local-authority/30UE,Development Control,1091,PLAN - Planning & Development,Agency Staff,13000,Direct Employee Expenses,5001,Contract work - Consultant NAME REDACTED.  April 2022 - March 2023,11/11/2022,0172710,"1,620.00",Revenue,Vivid Resourcing Ltd,76938,,
Chorley Borough Council,http://statistics.data.gov.uk/id/local-authority/30UE,Central Support Services,1009,EARL - Communities,External Contractor,40198,Miscellaneous Expenses,5034,NAME REDACTED Contractors,11/11/2022,0172952,993.00,Revenue,Vivid Resourcing Ltd,76938,,
Chorley Borough Council,http://statistics.data.gov.uk/id/local-authority/30UE,Central Support Services,1009,EARL - Communities,External Contractor,40198,Miscellaneous Expenses,5034,Charge for supply of contractors,11/11/2022,0172956,"1,036.35",Revenue,Vivid Resourcing Ltd,76938,,
Chorley Borough Council,http://statistics.data.gov.uk/id/local-authority/30UE,Development Control,1091,PLAN - Planning & Development,Agency Staff,13000,Direct Employee Expenses,5001,Contract work - Consultant NAME REDACTED.  April 2022 - March 2023,11/11/2022,0172962,"1,575.00",Revenue,Vivid Resourcing Ltd,76938,,
Chorley Borough Council,http://statistics.data.gov.uk/id/local-authority/30UE,Central Support Services,1009,GROW - Commercial & Property,Agency Staff,13000,Direct Employee Expenses,5001,"Building surveyor fees and mileage for 6 months, Housing",11/11/2022,0173160,"1,496.43",Revenue,Vivid Resourcing Ltd,76938,,
Chorley Borough Council,http://statistics.data.gov.uk/id/local-authority/30UE,Economic Development,1096,GROW - Commercial & Property,Agency Staff,13000,Direct Employee Expenses,5001,NAME REDACTED Interim Service Lead Start 12.09.2022 for 6months,04/11/2022,0173161,"2,323.75",Revenue,Vivid Resourcing Ltd,76938,,
Chorley Borough Council,http://statistics.data.gov.uk/id/local-authority/30UE,Central Support Services,1009,GROW - Commercial & Property,Agency Staff,13000,Direct Employee Expenses,5001,Agency Fees for Estate Surveyor NAME REDACTED - 12mths,11/11/2022,0173272,799.20,Revenue,Vivid Resourcing Ltd,76938,,
Chorley Borough Council,http://statistics.data.gov.uk/id/local-authority/30UE,Central Support Services,1009,GROW - Commercial & Property,Agency Staff,13000,Direct Employee Expenses,5001,Agency Fees for Estate Surveyor NAME REDACTED  - 12mths,11/11/2022,0173344,"1,800.00",Revenue,Vivid Resourcing Ltd,76938,,
Chorley Borough Council,http://statistics.data.gov.uk/id/local-authority/30UE,Central Support Services,1009,EARL - Communities,External Contractor,40198,Miscellaneous Expenses,5034,NAME REDACTED Contractors,11/11/2022,0173379,"1,024.01",Revenue,Vivid Resourcing Ltd,76938,,
Chorley Borough Council,http://statistics.data.gov.uk/id/local-authority/30UE,Central Support Services,1009,EARL - Communities,External Contractor,40198,Miscellaneous Expenses,5034,NAME REDACTED Contractors,11/11/2022,0173380,993.00,Revenue,Vivid Resourcing Ltd,76938,,
Chorley Borough Council,http://statistics.data.gov.uk/id/local-authority/30UE,Central Support Services,1009,EARL - Communities,External Contractor,40198,Miscellaneous Expenses,5034,NAME REDACTED Contractors,11/11/2022,0173389,"1,048.69",Revenue,Vivid Resourcing Ltd,76938,,
Chorley Borough Council,http://statistics.data.gov.uk/id/local-authority/30UE,Central Support Services,1009,EARL - Communities,External Contractor,40198,Miscellaneous Expenses,5034,NAME REDACTED Contractors,11/11/2022,0173390,993.00,Revenue,Vivid Resourcing Ltd,76938,,
Chorley Borough Council,http://statistics.data.gov.uk/id/local-authority/30UE,Central Support Services,1009,EARL - Communities,External Contractor,40198,Miscellaneous Expenses,5034,NAME REDACTED Contractors,11/11/2022,0173823,"1,233.75",Revenue,Vivid Resourcing Ltd,76938,,
Chorley Borough Council,http://statistics.data.gov.uk/id/local-authority/30UE,Central Support Services,1009,EARL - Communities,External Contractor,40198,Miscellaneous Expenses,5034,Charge for supply of contractors,11/11/2022,0173824,"1,886.70",Revenue,Vivid Resourcing Ltd,76938,,
Chorley Borough Council,http://statistics.data.gov.uk/id/local-authority/30UE,Central Support Services,1009,CUST - Customer & Digital,Computer Equipment-Maintenance,40105,Communication and Computing,5028,"Chorley CEO Office, Leaders Office & 1st Floor new meeting room 1 x Microsoft Teams Room Systems1 x Optional Advanced Replacement Service",11/11/2022,0173815,"10,964.50",Revenue,VP-AV Ltd,81653,,
Chorley Borough Council,http://statistics.data.gov.uk/id/local-authority/30UE,Central Support Services,1009,GOVN - Policy & Governance,Car Leasing Payment,14100,Direct Employee Expenses,5001,NUMBER PLATE REDACTED: NAME REDACTED - Annual,11/11/2022,0173852,"2,876.74",Revenue,VWFS UK Ltd T/A Volkswagen Group Leasing,56010,,
Chorley Borough Council,http://statistics.data.gov.uk/id/local-authority/30UE,Central Support Services,1009,GOVN - Policy & Governance,Car Leasing Payment,14100,Direct Employee Expenses,5001,VAT,11/11/2022,0173852,252.76,Revenue,VWFS UK Ltd T/A Volkswagen Group Leasing,56010,,
Chorley Borough Council,http://statistics.data.gov.uk/id/local-authority/30UE,Control Accounts,Control,GOVN - Policy & Governance,Manual Control Account,00001,Balance Sheet,Balance,- VAT,11/11/2022,0173852,-252.76,Revenue,VWFS UK Ltd T/A Volkswagen Group Leasing,56010,,
Chorley Borough Council,http://statistics.data.gov.uk/id/local-authority/30UE,Capital,Capital,GROW - Commercial & Property,Other Capital Related Fees,03024,Capital Expenditure,Capital,ADDRESS REDACTED Test electrics and landlord certificate following purchase,11/11/2022,0173645,393.75,Capital,Walker Gabbott Electrical Ltd,83932,,
Chorley Borough Council,http://statistics.data.gov.uk/id/local-authority/30UE,Capital,Capital,GROW - Commercial & Property,Other Capital Related Fees,03024,Capital Expenditure,Capital,Materials,11/11/2022,0173645,53.04,Capital,Walker Gabbott Electrical Ltd,83932,,
Chorley Borough Council,http://statistics.data.gov.uk/id/local-authority/30UE,Capital,Capital,GROW - Commercial & Property,Main Contractor,03007,Capital Expenditure,Capital,Town Hall Server Room Supply and installation with cable length uplift,04/11/2022,0173646,"4,810.00",Capital,Walker Gabbott Electrical Ltd,83932,,
Chorley Borough Council,http://statistics.data.gov.uk/id/local-authority/30UE,Capital,Capital,GROW - Commercial & Property,Main Contractor,03007,Capital Expenditure,Capital,Materials,04/11/2022,0173646,"7,061.03",Capital,Walker Gabbott Electrical Ltd,83932,,
Chorley Borough Council,http://statistics.data.gov.uk/id/local-authority/30UE,Central Support Services,1009,GROW - Commercial & Property,Planned Maintenance,20006,Repairs Maintenance & Alts,5005,Market  - Electrical Planned Maintenance and remedials,11/11/2022,0173677,"2,850.00",Revenue,Walker Gabbott Electrical Ltd,83932,,
Chorley Borough Council,http://statistics.data.gov.uk/id/local-authority/30UE,Central Support Services,1009,GROW - Commercial & Property,General Repairs - Reactive,20004,Repairs Maintenance & Alts,5005,Primrose  - Electrical Reactive Repairs,11/11/2022,0173695,646.00,Revenue,Walker Gabbott Electrical Ltd,83932,,
Chorley Borough Council,http://statistics.data.gov.uk/id/local-authority/30UE,Central Support Services,1009,GROW - Commercial & Property,General Repairs - Reactive,20004,Repairs Maintenance & Alts,5005,MATERIALS,11/11/2022,0173695,855.00,Revenue,Walker Gabbott Electrical Ltd,83932,,
Chorley Borough Council,http://statistics.data.gov.uk/id/local-authority/30UE,Central Support Services,1009,GROW - Commercial & Property,General Repairs - Reactive,20004,Repairs Maintenance & Alts,5005,Astley Hall and Buildings  - Electrical Reactive Repairs,11/11/2022,0173697,650.00,Revenue,Walker Gabbott Electrical Ltd,83932,,
Chorley Borough Council,http://statistics.data.gov.uk/id/local-authority/30UE,Central Support Services,1009,GROW - Commercial & Property,General Repairs - Reactive,20004,Repairs Maintenance & Alts,5005,Materilas,11/11/2022,0173697,675.92,Revenue,Walker Gabbott Electrical Ltd,83932,,
Chorley Borough Council,http://statistics.data.gov.uk/id/local-authority/30UE,Central Support Services,1009,GROW - Commercial & Property,General Repairs - Reactive,20004,Repairs Maintenance & Alts,5005,Town Hall  - Electrical Reactive Repairs,11/11/2022,0173699,193.75,Revenue,Walker Gabbott Electrical Ltd,83932,,
Chorley Borough Council,http://statistics.data.gov.uk/id/local-authority/30UE,Central Support Services,1009,GROW - Commercial & Property,General Repairs - Reactive,20004,Repairs Maintenance & Alts,5005,MATERIALS,11/11/2022,0173699,277.45,Revenue,Walker Gabbott Electrical Ltd,83932,,
Chorley Borough Council,http://statistics.data.gov.uk/id/local-authority/30UE,Central Support Services,1009,GROW - Commercial & Property,General Repairs - Reactive,20004,Repairs Maintenance & Alts,5005,Primrose  - Electrical Reactive Repairs,11/11/2022,0173703,387.50,Revenue,Walker Gabbott Electrical Ltd,83932,,
Chorley Borough Council,http://statistics.data.gov.uk/id/local-authority/30UE,Central Support Services,1009,GROW - Commercial & Property,General Repairs - Reactive,20004,Repairs Maintenance & Alts,5005,MATERIALS,11/11/2022,0173703,215.04,Revenue,Walker Gabbott Electrical Ltd,83932,,
Chorley Borough Council,http://statistics.data.gov.uk/id/local-authority/30UE,Capital,Capital,GOVN - Policy & Governance,Architects Fees,03022,Capital Expenditure,Capital,CIVIL & STRUCTURAL ENGINEERING SERVICES (STAGES 2-7) FOR THE DELIVERY OF THE ACCOMMODATION REVIEW PROJECT AT CHORLEY TOWN HALL & EX-WHITE HART PUBLIC,11/11/2022,0173649,"3,000.00",Capital,Waterman Structures Limited,85606,,
Chorley Borough Council,http://statistics.data.gov.uk/id/local-authority/30UE,Central Support Services,1009,GROW - Commercial & Property,Water - Metered Supplies,20022,Water Services,5009,11/9 to 10/10/22,04/11/2022,0173624,549.37,Revenue,WaterPlus 4083538012 Destructor Stump Lane Chorley,85458,,
Chorley Borough Council,http://statistics.data.gov.uk/id/local-authority/30UE,Business Support,1095,GROW - Commercial & Property,Water - Metered Supplies,20022,Water Services,5009,14/9 to 13/10/22,44869,0173625,1110.46,Revenue,WaterPlus 6002259172 The Strawberry Fields,86926,,
Chorley Borough Council,http://statistics.data.gov.uk/id/local-authority/30UE,Central Support Services,1009,GOVN - Policy & Governance,Postages,40082,Communication and Computing,5028,Weekly collection of mail from Union Street,44876,0173739,394.88,Revenue,Whistl North Limited,67256,,
Chorley Borough Council,http://statistics.data.gov.uk/id/local-authority/30UE,Central Support Services,1009,GOVN - Policy & Governance,Postages,40082,Communication and Computing,5028,,44876,0173739,9.6,Revenue,Whistl North Limited,67256,,
Chorley Borough Council,http://statistics.data.gov.uk/id/local-authority/30UE,Central Support Services,1009,GOVN - Policy & Governance,Postages,40082,Communication and Computing,5028,Weekly collection of mail from Union Street,44890,0174051,343.13,Revenue,Whistl North Limited,67256,,
Chorley Borough Council,http://statistics.data.gov.uk/id/local-authority/30UE,Central Support Services,1009,GOVN - Policy & Governance,Postages,40082,Communication and Computing,5028,,44890,0174051,3.6,Revenue,Whistl North Limited,67256,,
Chorley Borough Council,http://statistics.data.gov.uk/id/local-authority/30UE,Recognised Cap Grants & Conts,,PLAN - Planning & Development,Contributions Parish Councils,40144,Grants and Subscriptions,5031,CIL receipt 1 Apr - 30 Sept 2022,44876,0173539,1328.91,Revenue,Whittle-le-Woods Parish Council,18602,,
Chorley Borough Council,http://statistics.data.gov.uk/id/local-authority/30UE,Recognised Cap Grants & Conts,,PLAN - Planning & Development,Contributions Parish Councils,40144,Grants and Subscriptions,5031,CIL Receipt 1 Apr - 30 Sept 2022,44876,0173538,5677.12,Revenue,Withnell Parish Council,16211,,
Chorley Borough Council,http://statistics.data.gov.uk/id/local-authority/30UE,Central Support Services,1009,GROW - Commercial & Property,General Repairs - Reactive,20004,Repairs Maintenance & Alts,5005,Primrose  -  Auto doors and shutter reactive repairs,44869,0173309,915,Revenue,Yates Entrance Solutions Ltd,84714,,
Chorley Borough Council,http://statistics.data.gov.uk/id/local-authority/30UE,Central Support Services,1009,GROW - Commercial & Property,General Repairs - Reactive,20004,Repairs Maintenance & Alts,5005,Market  -  Auto doors and shutter reactive repairs,44876,0173381,660,Revenue,Yates Entrance Solutions Ltd,84714,,
Chorley Borough Council,http://statistics.data.gov.uk/id/local-authority/30UE,Central Support Services,1009,GROW - Commercial & Property,General Repairs - Reactive,20004,Repairs Maintenance & Alts,5005,Town Hall  -  Auto doors and shutter reactive repairs,44869,0173382,480,Revenue,Yates Entrance Solutions Ltd,84714,,
Chorley Borough Council,http://statistics.data.gov.uk/id/local-authority/30UE,Central Support Services,1009,GROW - Commercial & Property,General Repairs - Reactive,20004,Repairs Maintenance & Alts,5005,Market  -  Auto doors and shutter reactive repairs,44890,0174030,580,Revenue,Yates Entrance Solutions Ltd,84714,,
Chorley Borough Council,http://statistics.data.gov.uk/id/local-authority/30UE,Central Support Services,1009,GROW - Commercial & Property,General Repairs - Reactive,20004,Repairs Maintenance & Alts,5005,Clayton Brook Community Centre After a recent site survey I would recommend the following equipment is installed to help combat vandalism in the area,44890,0174032,4200,Revenue,Yates Entrance Solutions Ltd,84714,,
